Workbook

Sheet Main Menu
E1: *Enter your name, access code, and CRN below and then click the Activate button.
E2: This file is NOT to be shared with any person as it is specifically linked with your name.
E4: Date:
E5: Name:
E6: Access Code: | F6: 2012300220
E7: CRN: | F7: 30180
A8: Davenport University | E8: Activation was successful.
A9: ACCT202 Practice Set | E9: *Click the following buttons to go to the corresponding worksheets:
A10: Ver. 5.1, 2011-12
A11: Summer 2012

Sheet Credits
A1: Login | B1: Student | C1: Access Code | D1: Course | E1: Login
A2: Date | B2: Name | C2: Number | D2: CRN | E2: Date
A3: =NOW() -> 2015-10-25T12:46:14.400 | B3: Anjum Bheda | C3: 2012300220 | D3: 30180 | E3: 2012-05-26T10:40:10.960
C4: 2012300220 | D4: 30180

Sheet Instructions
A1: Company Background & Scenario
A2: The AC Speed Company is a well-established, publicly-held corporation, operating as a wholesaler in the auto parts industry. Specifically, AC Speed purchases auto parts from manufacturers and sells them to large business customers. Most purchases and sales are on account, with trade credit terms (specified below).
A3: You’re a Davenport University student pursuing a bachelor’s degree in business and employed at the AC Speed Company this semester as an intern. You’ve worked in various departments and on several projects so far, learning a lot about the company’s business operations. Management seems impressed with your enthusiasm and the quality of your work.
A4: The company’s accountant has just been called away for a family emergency and will likely be absent for a month or so. The General Manager asks you to take over the accountant’s regular duties on an interim basis. You’re nervous about doing so, but are confident that what you’ve learned in accounting class, plus your personal problem-solving skills, will make this a successful experience. What a great learning opportunity, not to mention an enhancement to your resume!
A5: Project Overview & Instructions
A6: A. Overview
A7: a. Part 1 is a financial accounting activity that requires you to record various business transactions during the month, close the accounting records at the end of the month, and prepare the financial statements. These tasks relate to the steps in the accounting cycle that you learned in your first accounting course.`
A8: b. Part 2 is an activity that requires you to analyze the company’s year-end financial statements to assist management in assessing the company’s position and making decisions about its future direction.
A9: c. This is an individual, not a team, project. While you may discuss this project with others, you must prepare and submit your own work. Refer to the Academic Integrity Statement in the project workbook.
A10: d. Before starting work, review the entire project: all instructions, business transactions descriptions, workbook sections, check figures, due dates, and submission requirements.
A11: B. General Instructions
A12: a. The parts of this project, including specific business transactions and steps in the accounting cycle, must be completed in sequence. This is particularly important with business transactions relating to purchases and sales of inventory.
A13: b. As you work on parts of the project, you will note references to pages or sections of your accounting textbooks that will provide examples or explanations related to that task. You are also encouraged to use your textbook’s table of contents (front) or index (back) to locate helpful references.
A14: c. These project instructions will not address every detail of every task. If you have questions, ask your instructor.
A15: d. Most of your work for this project will be accomplished in Excel. A basic skill level in this application is expected. That is, you should be able to such things as move around in a workbook, enter data in cells, use the sum function, compose basic formulas, and save your work.
A16: e. If rounding is required, round to the nearest cent. For example, $96.835 would be entered as $96.84.
A17: f. Use the check figures provided to check your work as you progress through the project. Investigate any discrepancies and correct them as you go along.
A18: g. Refer to the project rubric to determine how components of the project will be assessed.
A19: h. Appearance counts! Pay attention to the format, to spelling, and to other details of appearance. This reflects on management’s perception of you as a professional.
A20: C. Submission Requirements
A21: a. Final submission of all parts of this project must be in electronic (not paper) form. That is, you will submit your completed work via an assignment link in a Blackboard course site or via an email attachment. Follow your instructor’s directions.
A22: b. Save backup copies of your work. If you have multiple versions of the project, clearly label them for your own reference and to ensure that you submit the appropriate version to your instructor.
A23: c. You must read the academic integrity statement in the project workbook and enter your student ID number on the form to signify your agreement with and adherence to that statement. Final project submissions will not be accepted without this.
A24: d. Due dates for the parts of this project will be provided by your instructor in the course syllabus, in the Blackboard course site, or in a designated handout. Be sure to enter these on your personal calendar and plan your work on this project accordingly.
A25: D. Credit Terms & Inventory Accounting
A26: a. When AC Speed purchases merchandise from a supplier or vendor on account, they receive credit terms of 3/10, net 30.
A27: b. When AC Speed sells merchandise to a customer on account, they offer that customer credit terms of 3/10, net 45.
A28: c. AC Speed accounts for the specific types of merchandise in their inventory with a set of subsidiary ledgers (inventory control cards). The balances in these subsidiary ledger records, in total, must equal the balance in the Merchandise Inventory account in the general ledger.
A29: d. AC Speed uses a perpetual inventory accounting system and a first-in, first-out (FIFO) inventory costing method.
A30: e. Subsidiary ledger records are kept for each customer and for each vendor. The balances in the customer subsidiary ledger records, in total, must equal the Accounts Receivable account balance in the general ledger. The balances in the vendor subsidiary ledger records, in total, must equal the Accounts Payable account balance in the general ledger.
A31: E. Financial Accounting Steps:
A32: a. Record each business transaction, in sequence by date, in the appropriate special journal or the general journal. Also, immediately record any transaction involving inventory, a customer, or a vendor in the appropriate subsidiary ledger record.
A33: b. At the end of the month, post each entry in the general journal to the general ledger.
A34: c. At the end of the month, total each column in each special journal and post that total to the general ledger. EXCEPT for entries in the “Other” columns, which must be posted individually to the general ledger.
A35: d. When posting is completed, bring the balance in each general ledger account up to date.
A36: e. When posting is completed, bring the balance in each subsidiary ledger account up to date.
A37: f. At this point in the closing process, the balances of all subsidiary ledger accounts would be totaled and that total compared to the balance of the corresponding control account in the general ledger. That is, the total of inventory control cards would be compared to the Merchandise Inventory balance; the customer subsidiary ledger total to the Accounts Receivable balance; and the vendor subsidiary ledger total to the Accounts Payable balance. Any discrepancies would be investigated and corrected. Given the limited scope of this project scenario, reconciliation between subsidiary ledgers and control accounts is not possible.
A38: g. List all general ledger account balances in the unadjusted trial balance columns of the worksheet. Use the sum function in Excel to total the debit and credit columns. These totals should be equal.
A39: h. Prepare the end-of-month adjusting entries. Record these entries in the general journal and post them to the general ledger. Also record the adjusting entries in the designated columns in the worksheet and total the debit and credit columns. These totals should be equal.
A40: i. Update general ledger account balances after posting adjusting journal entries.
A41: j. Complete the unadjusted trial balance columns on the worksheet. Use Excel formulas to carry balances from the unadjusted trial balance columns, adjusting as necessary by entries in the adjustments columns. Check your results against the balances recorded in the general ledger.
A42: k. Sort the dollars recorded in the adjusted trial balance columns into either the income statement or the balance sheet columns. Total these columns. The entry of net income should cause the debit and credit columns to equal one another.
A43: l. Use the income statement information on the worksheet to prepare a multi-step income statement in good form. Look at examples of this income statement format in your textbook, such as the one on page 220.
A44: m. Prepare a statement of retained earnings in good form. Look at examples of this statement in your textbook. Remember that net income from your just-completed income statement is a necessary component of this statement.
A45: n. Use the balance sheet information on the worksheet to prepare a classified balance sheet, similar in format to the example on page 711. Remember that the ending retained earnings balance from the just-completed statement is a necessary component of the equity section of the balance sheet.
A46: o. Prepare the end-of-month closing entries. Record these entries in the general journal and post them to the general ledger. Update balances in the general ledger accounts.
A47: p. List the general ledger accounts that have balances other than zero on the post-closing trial balance. The totals of the debit column and the credit column should be equal.
A48: F. Part 2 of this project requires you to analyze the company’s year-end financial statements to assist the management of AC Speed in assessing the company’s financial position and making decisions about its future direction.
A49: a. Before beginning this part of the project, you will find it helpful to review Chapter 18 on financial statement analysis. Page 809, a summary of ratios, will be particularly useful.
A50: b. Tabs in the project workbook provide trial balance data for the current and two preceding years for AC Speed and a location to calculation a selection of ratios. Use the trial balance data and the formulas in Chapter 18 to compute the ratios listed for each of the three years. YOU MUST STRUCTURE YOUR RATIO CALCULATIONS AS FORMULAS AND LINKS TO APPROPRIATE CELLS ON THE TRIAL BALANCE TAB. You will lose points by simply typing the final ratio numbers or percentages.
A51: c. After you calculate the ratios, consider whether there is a trend over the three-year period. Also compare the ratios you calculated for AC Speed with those listed as industry averages. Review the information in Chapter 18 to help you determine what the ratios are telling you about various aspects of AC Speed’s business operations.
A52: d. Use Word to prepare a memo (minimum 500 words) to AC Speed’s general manager, addressing the three questions listed at the bottom of the ratios tab. This should be formatted as a business memo, not an APA paper. Be sure to include a brief introduction and conclusion in the memo. Each question should be addressed in one or two paragraphs in the body of the memo. Remember that the general manager will expect details/facts/ratios to support statements you may make about the status of the business. Your writing should be concise, clear, and readable, with a fairly formal tone (since it’s addressed to AC Speed’s general manager, who is likely to share it with other members of management). Your instructor will provide the due date and submission requirements for this part of the project.

Sheet Academic Integrity
D4: Project Academic Integrity Statement
D6: I understand that this is an individual, not a team, project; that I am expected to do my own work on the project. I may discuss project requirements in general terms with others, but I am not permitted to collaborate with anyone or copy anyone's work, manually or electronically, in full or in part.
D11: I also understand that I am not permitted to supply anyone with the results of my work or with information or assistance that compromises another student's completion of the project through his or her own efforts.
D15: If I have any questions about these requirements, I will promptly ask my instrucor for clarification.
D18: I understand that any violation of this project academic integrity statement will lead, at minimum, to a failing grade for the project.
D21: By entering my name and student ID number below, I am attesting that I have read, understood, and will personally adhere to this project academic integrity statement.
D26: Student Name
D29: Student ID Number
D32: Date

Sheet Transactions
A4: JULY JOURNAL TRANSACTIONS
A6: 2011-07-01 | B6: Issued 8,200 shares of common stock for $11 per share (Refer to Chart of Accounts GL for description of common stock).
A8: 2011-07-01 | B8: Signed a two year 14%, $216,000 note payable with Fifth Third Bank.
A10: 2011-07-01 | B10: Sold 1500 speakers on account to GM for $112 each, Invoice #2301
A12: 2011-07-01 | B12: Purchased 2800 rearview mirrors on credit from Gentex for $45 each.
A14: 2011-07-02 | B14: Rented idle warehouse space to a new tenant and received $15,000 for three months rent. (July - October)
A16: 2011-07-02 | B16: Sold 250 rearview mirrors on account to Honda for $105 each, Invoice #2302
A18: 2011-07-03 | B18: Purchased 3450 speakers on credit from Bose for $72 each.
A20: 2011-07-03 | B20: Sold 1300 GPS units on account to Toyota for $65 each, Invoice #2303
A22: 2011-07-04 | B22: 60 defective speakers were returned from GM. A credit was issued to the customer.
A24: 2011-07-05 | B24: The 60 defective speakers were returned to Bose.
A26: 2011-07-06 | B26: Paid $650 for equipment repair. Check # 7000
A28: 2011-07-07 | B28: Reimbursed employees for entertainment expenses totaling $300. Check # 7001
A30: 2011-07-08 | B30: Paid June utility bill of $1850. Check # 7002
A32: 2012-07-08 | B32: Purchased office supplies from Staples on credit for $700.
A34: 2011-07-11 | B34: Paid in full for the July 1 purchase from Gentex. Check # 7003
A36: 2011-07-11 | B36: Received payment from GM on remaining balance for July 1st sale
A38: 2011-07-12 | B38: The Board of Directors declared a cash dividend of $0.50 per share for shareholders of record on July 14th, payable on July 20th.
A40: 2011-07-12 | B40: Purchased 3100 GPS units from Garmin for $28 each on credit.
A42: 2011-07-12 | B42: Received payment in full from Honda for July 2nd sale.
A44: 2011-07-13 | B44: Paid in full for the July 3rd purchase from Bose, Check # 7004
A46: 2011-07-13 | B46: Received payment in full from Toyota for July 3nd sale
A48: 2011-07-15 | B48: Check # 7005 was issued for payroll: $23,750 for salaries and $1,925 for wages
A50: 2011-07-17 | B50: Bought new Office Furniture for $15,600. Furniture use begins in August. Check # 7006
A52: 2011-07-19 | B52: 1550 GPS units purchased on July 12th from Garmin were found to be the wrong model. All 1550 units were returned.
A54: 2011-07-19 | B54: Paid $1400 bill for phone survey performed by marketing consultant, Check # 7007
A56: 2011-07-20 | B56: Received $122,500 from Ford for June 5th sales.
A58: 2011-07-20 | B58: Paid $21,000 mortgage payment to Fifth Third Bank ($6,000 principal and $15,000 interest), Check # 7008.
A60: 2011-07-20 | B60: Paid the dividend that was declared on July 12, Check # 7009
A62: 2011-07-22 | B62: Paid the remaining balance on the purchase from Garmin on July 12th. Check #7010
A64: 2011-07-23 | B64: General Motors declared bankruptcy. $10,000 receivable from General Motors was written off .
A66: 2011-07-25 | B66: Received $119,050 payment from Toyota for sale on June 11th.
A68: 2011-07-26 | B68: Purchased 800 shares of Treasury Stock for $15 per share, Check # 7011 (cost method)
A70: 2011-07-26 | B70: Sold 425 speakers to Honda for $114 each, Invoice # 2304
A72: 2011-07-27 | B72: Paid Gentex $40,000 for June 27 purchase, Check # 7012
A74: 2011-07-27 | B74: Sold 1850 Rearview mirrors to Ford for $89 each, Invoice # 2305
A76: 2011-07-28 | B76: Issued bonds payable at face value for $ 485,000
A78: 2011-07-29 | B78: Paid Bose $158,240 for balance due in June, Check # 7013
A80: 2011-07-29 | B80: Check #7014 was issued for payroll: $ 20,500 for salaries and $ 3,560 for wages
A82: 2011-07-30 | B82: Received and paid legal service invoice of $9,025, Check # 7015
A84: 2011-07-31 | B84: Paid the first month's principal of $25,000 plus interest for notes issued at the beginning of the month. Check # 7016
A86: *All purchases on account terms of 3/10, net 30
A88: **All credit sales have terms of 3/10, net 45
A90: July Month-end Adjustments:
A92: ( A ) | B92: AC Speed estimates bad debt expense on a monthly basis rather than waiting until year-end. The company uses the allowance method. Based on recent industry estimates, AC Speed estimates that the estimate of bad debt expense should be 1.5% of total sales.
A94: ( B ) | B94: The balance in the Prepaid Insurance account at the beginning of July represents 6 months of coverage. Record the amount of insurance expense for July. (p.102)
A97: ( C ) | B97: AC Speed has earned one month of the rent prepaid by their tenant at the beginning of July. (pp. 104-105)
A99: ( D ) | B99: The Company took a physical inventory count on July 31 and found the following inventory on hand:
B100: Merchandise Inventory - $310,000 (p.211)
A102: ( E ) | B102: The Company took a physical count of Office Supplies on July 31 and found the following to be on hand:
B103: Office Supplies - $2,415 (p.101)
A105: ( F ) | B105: Depreciation on the company's fixed assets for the month of July is as follows:
B106: 1. The furniture and equipment for the warehouse purchased a few years ago cost $10,000. These assets have a 10-year life, with $1500 salvage value, and are depreciated using the straight-line method. (p.444)
B107: 2. The furniture and equipment for the office was purchased last year for $8,500. These assets have a 5 year life, an expected salvage value of $1,500, and are depreciated using double declining method.
B108: 3.The new office furniture purchased in July has a 5 year life with a $500 salvage value, and is depreciated using the straight line method

Sheet Products
A1: Product Name | B1: Description
A2: GPS | B2: In vehicle GPS unit
A3: Speakers | B3: High sound quality speakers
A4: Rearview Mirror | B4: Rearview mirror with built in reverse camera display

Sheet Chart of Accounts GL
A1: AC Speed Corporation
A2: Chart of Accounts - General Ledger
A4: BALANCE SHEET ACCOUNTS
A5: Assets
A6: Current Assets
A8: Acct # | B8: Account Name
A9: 100 | B9: Cash
A10: 102 | B10: Accounts Receivable
A11: 103 | B11: Allowance for Doubtful Accounts
A12: 104 | B12: Merchandise Inventory
A13: 105 | B13: Office Supplies
A14: 106 | B14: Prepaid Insurance
A15: Property, Plant and Equipment
A16: 140 | B16: Land
A17: 145 | B17: Building
A18: 146 | B18: Accumulated Depreciation - Building
A19: 151 | B19: Equipment & Furniture - Warehouse
A20: 152 | B20: Accumulated Depreciation - Equip & Furn. - Warehouse
A21: 153 | B21: Equipment & Furniture - Office
A22: 154 | B22: Accumulated Depreciation - Equip & Furn. - Office
A23: Liabilities
A24: Current Liabilities
A26: 201 | B26: Accounts Payable
A27: 202 | B27: Wages Payable
A28: 203 | B28: Interest Payable
A29: 204 | B29: Dividends Payable
A30: 205 | B30: Unearned Rent
A31: Long-Term Liabilities
A32: 250 | B32: Notes Payable
A33: 251 | B33: Bonds Payable
A34: 252 | B34: Mortgage (Warehouse) Payable
A35: Capital (Equity)
A36: 300 | B36: Common Stock, $1 Par, 125,000 Authorized; 75,000 shares Issued/Outstanding
A37: 301 | B37: Paid In Capital - Excess of Par
A38: 330 | B38: Retained Earnings
A39: 340 | B39: Treasury Stock
A40: INCOME STATEMENT ACCOUNTS
A41: Revenue
A42: 500 | B42: Sales
A43: 510 | B43: Sales Discounts
A44: 511 | B44: Sales Returns & Allowances
A45: Cost of Goods Sold
A46: 600 | B46: Cost of Goods Sold
A47: Operating Expenses
A48: 700 | B48: Wage Expense (hourly workers)
A49: 701 | B49: Salaries Expense (Exempt Staff)
A50: 702 | B50: Marketing Expense
A51: 703 | B51: Travel and Entertainment Expense
A52: 704 | B52: Bad Debt Expense
A53: 705 | B53: Property Tax Expense
A54: 706 | B54: Maintenance & Repair Expense
A55: 707 | B55: Legal Expenses
A56: 708 | B56: Insurance Expense
A57: 709 | B57: Utilities Expense
A58: 710 | B58: Office Supplies Expense
A59: 711 | B59: Telecommunications Expense
A60: 712 | B60: Depreciation Expense - Equip & Furniture - Warehouse
A61: 713 | B61: Depreciation Expense - Equip & Furniture - Office
A62: Other Income
A63: 800 | B63: Rent Income
A64: Other Expenses
A65: 900 | B65: Interest Expense
A66: Other
A67: 1000 | B67: Income Summary

Sheet Chart of Accounts AR Ledger
B1: ='Chart of Accounts GL'!A1 -> AC Speed Corporation
A2: Chart of Accounts - Accounts Receivable Ledger
B4: Account Name
B5: General Motors | C5: 0
B6: Ford Motor Co. | C6: 809650
B7: Toyota | C7: 80950
B8: Honda | C8: 48450
B9: Total | C9: 939050

Sheet Chart of Accounts AP Ledger
A1: ='Chart of Accounts GL'!A1 -> AC Speed Corporation
A2: Chart of Accounts - Accounts Payable Ledger
B4: Account Name
B6: Garmin
B7: Magellan
B8: Bose
B9: Gentex

Sheet Sales Journal
A1: ='Chart of Accounts GL'!A1 -> AC Speed Corporation
A2: Sales Journal
A4: Date | B4: Invoice No. | C4: A/R Account Debited | D4: Post Ref | E4: A/R - DR Sales - CR | F4: CGS - DR Inv - CR
A5: 1st July | C5: General Motors | E5: 168000 | F5: 106500
A6: 2nd July | C6: Honda | E6: 26250 | F6: 10750
A7: 3rd July | C7: Toyota | E7: 84500 | F7: 52000
A8: 27th July | C8: Honda | E8: 48450 | F8: 30175
C9: Ford | E9: 164650 | F9: 81350
C10: Total | E10: 491850 | F10: 280775

Sheet Purchases Journal
A1: AC Speed Corporation
A2: Purchases Journal
A4: Date | B4: Creditors Account Credited | C4: Other Account - Debited | D4: Post Ref | E4: A/P - CR | F4: Inventory - DR | G4: Office Supplies - DR | H4: Other - DR
A5: 1st July | B5: Gentex | C5: Inventory | E5: 126000 | F5: 126000
A6: 3rd july | B6: Bose | C6: Inventory | E6: 248400 | F6: 248400
A7: 8th july | B7: Staples | C7: Office supplies | E7: 700 | G7: 700
A8: 12th July | B8: Garmin | C8: Inventory | E8: 86800 | F8: 86800
B9: Total | E9: =SUM(E5:E8) -> 461900 | F9: =SUM(F5:F8) -> 461200 | G9: 700

Sheet Inventory Control
A1: Shoe: | B1: =Products!A2 -> GPS
B2: Beginning Inventory (BI) | E2: Purchases | H2: Sales | K2: Ending Inventory (EI)
A3: Date | B3: BI Units | C3: BI $/Unit | D3: BI $ | E3: Purch Units | F3: Purch $/Unit | G3: Purch $ | H3: Sale Units (CGS) | I3: Sale $/Unit (CGS) | J3: Sale $ (CGS) | K3: EI Units | L3: EI $/Unit | M3: EI $
A4: 2011-07-01 | B4: 2500 | C4: 40 | D4: =B4*C4 -> 100000 | G4: =E4*F4 -> 0 | J4: =H4*I4 -> 0 | K4: 2500 | L4: 40 | M4: =D4+G4-J4 -> 100000
A5: 3rd Jul | H5: 1300 | I5: 40 | J5: 52000 | K5: 1200 | L5: 40 | M5: 48000
A6: 12th jul | E6: 3100 | F6: 28 | G6: 86800 | K6: 1200 | L6: 40 | M6: 48000
K7: 3100 | L7: 28 | M7: 86800
A8: 19th July | H8: 1550 | I8: 28 | J8: 43400 | K8: 1200 | L8: 40 | M8: 48000
K9: 1550 | L9: 28 | M9: 43400
A16: Shoe: | B16: =Products!A3 -> Speakers
B17: Beginning Inventory (BI) | E17: Purchases | H17: Sales | K17: Ending Inventory (EI)
A18: Date | B18: BI Units | C18: BI $/Unit | D18: BI $ | E18: Purch Units | F18: Purch $/Unit | G18: Purch $ | H18: Sale Units (CGS) | I18: Sale $/Unit (CGS) | J18: Sale $ (CGS) | K18: EI Units | L18: EI $/Unit | M18: EI $
A19: 2011-07-01 | B19: 2000 | C19: 71 | D19: =B19*C19 -> 142000 | G19: =E19*F19 -> 0 | J19: =H19*I19 -> 0 | K19: 2000 | L19: 71 | M19: =D19 -> 142000
A20: 1st jul | H20: 1500 | I20: 71 | J20: 106500 | K20: 500 | L20: 71 | M20: 35500
A21: 3rd jul | E21: 3450 | F21: 72 | G21: =E21*F21 -> 248400 | K21: 500 | L21: 71 | M21: 35500
K22: 3450 | L22: 72 | M22: =K22*L22 -> 248400
A23: 4th jul | E23: 60 | F23: 71 | G23: 4260 | K23: 560 | L23: 71 | M23: 39760
K24: 3450 | L24: 72 | M24: =K24*L24 -> 248400
A25: 5th jul | H25: 60 | I25: 71 | J25: 4260 | K25: 500 | L25: 71 | M25: 35500
K26: 3450 | L26: 72 | M26: =K26*L26 -> 248400
A27: 26th jul | H27: 425 | I27: 71 | J27: 30175 | K27: 75 | L27: 71 | M27: 5325
K28: 3450 | L28: 72 | M28: =K28*L28 -> 248400
A29: Shoe: | B29: =Products!A4 -> Rearview Mirror
B30: Beginning Inventory (BI) | E30: Purchases | H30: Sales | K30: Ending Inventory (EI)
A31: Date | B31: BI Units | C31: BI $/Unit | D31: BI $ | E31: Purch Units | F31: Purch $/Unit | G31: Purch $ | H31: Sale Units (CGS) | I31: Sale $/Unit (CGS) | J31: Sale $ (CGS) | K31: EI Units | L31: EI $/Unit | M31: EI $
A32: 2011-07-01 | B32: 1200 | C32: 43 | D32: =B32*C32 -> 51600 | G32: =E32*F32 -> 0 | J32: =H32*I32 -> 0 | K32: 1200 | L32: 43 | M32: =D32+G32-J32 -> 51600
A33: 1st jul | E33: 2800 | F33: 45 | G33: 126000 | K33: 1200 | L33: 43 | M33: 51600
K34: 2800 | L34: 45 | M34: 126000
A35: 2nd Jul | H35: 250 | I35: 43 | J35: 10750 | K35: 950 | L35: 43 | M35: 40850
K36: 2800 | L36: 45 | M36: 126000
A37: 27th jul | H37: 950 | I37: 43 | J37: 40850
H38: 900 | I38: 45 | J38: 40500 | K38: 1900 | L38: 45 | M38: 85500

Sheet Receipts
A1: ='Chart of Accounts GL'!A1 -> AC Speed Corporation
A2: Cash Receipts Journal
A4: Date | B4: Acct - CR Customer Acct Other Acct | C4: Post Ref | D4: Sales - CR | E4: A/R - CR | F4: Other - CR | G4: Sale Discount - DR | H4: Cash - DR | I4: CGS - DR Inv - CR
A5: 1st jul | B5: Common stock and excess of par | F5: 90200 | H5: 90200
A6: 1st july | B6: Notes payable | F6: 216000 | H6: 216000
A7: 2nd jul | B7: Rent received in advance | F7: 15000 | H7: 15000
A8: 11th jul | B8: G.M | E8: 161280 | G8: 4838 | H8: 156442
A9: 12th jul | B9: Honda | E9: 26250 | G9: 787 | H9: 25463
A10: 13th jul | B10: Toyota | E10: 84500 | G10: 2535 | H10: 81965
A11: 20th jul | B11: Ford | E11: 122500 | G11: 3675 | H11: 118825
A12: 25th jul | B12: Toyota | E12: 119050 | G12: 3571 | H12: 115479
A13: 28th jul | B13: Bonds payable | F13: 485000 | H13: 485000
B14: Total | E14: =SUM( E8:E12) -> 513580 | F14: =SUM(F5:F13) -> 806200 | G14: =SUM(G7:G12) -> 15406 | H14: =SUM(H5:H13) -> 1304374

Sheet Cash Payments Journal
A1: ='Chart of Accounts GL'!A1 -> AC Speed Corporation
A2: Cash Payments Journal
A4: Date | B4: Check # | C4: Payee | D4: Account Debited | E4: Post Ref | F4: Cash - CR | G4: Inventory - CR | H4: Other - DR | I4: A/P - DR
A5: 2012-07-06 | D5: Equipment repair | F5: 650 | H5: 650
A6: 2012-07-07 | D6: Entertainment expense | F6: 300 | H6: 300
A7: 2012-07-08 | D7: Utility bill | F7: 1850 | H7: 1850
A8: 2012-07-11 | D8: Gentex | F8: 122220 | G8: 3780 | I8: 126000
A9: 2012-07-13 | D9: Bose | F9: 240948 | G9: 7452 | I9: 248400
A10: 2012-07-15 | D10: Salaries & wages | F10: 25675 | H10: 25675
A11: 2012-07-19 | D11: Office furniture | F11: 15600 | H11: 15600
A12: 2012-07-19 | D12: Phone bill | F12: 1400 | H12: 1400
A13: 2012-07-20 | D13: Mortgage payable | F13: 21000 | H13: 21000
A14: 2012-07-20 | D14: Dividend payable | F14: 41600 | H14: 41600
A15: 2012-07-22 | D15: Garmin | F15: 42098 | G15: 1302 | I15: 43400
A16: 2012-07-26 | D16: Treasury stock | F16: 12000 | H16: 12000
A17: 2012-07-27 | D17: Gentex | F17: 38800 | G17: 1200 | I17: 40000
A18: 2012-07-29 | D18: Bose | F18: 158240 | I18: 158240
A19: 2012-07-29 | D19: Salaries & wages | F19: 24060 | H19: 24060
A20: 2012-07-30 | D20: Legal service | F20: 9025 | H20: 9025
A21: 2012-07-31 | D21: Note payable | F21: 27520 | H21: 27520
D22: Total | F22: 782986 | G22: 13734 | H22: 180680 | I22: 616040

Sheet General Journal
A1: ='Chart of Accounts GL'!A1 -> AC Speed Corporation
A2: General Journal
A4: Date | B4: Accounts | C4: Post Ref | D4: DEBIT | E4: CREDIT
A5: 1st july | B5: Cash | D5: 90200
B6: Common Stock | E6: 8200
B7: Paid in capital in excess of par | E7: 82000
A8: 1st july | B8: Cash | D8: 216000
B9: 14% Note Payable | E9: 216000
A10: 2nd july | B10: Cash | D10: 15000
B11: Unearned Rent | E11: 15000
A12: 6th july | B12: Equipment Repair | D12: 650
B13: Cash | E13: 650
A14: 7th July | B14: Entertainment Expense | D14: 300
B15: Cash | E15: 300
A16: 8th July | B16: Utility Bill | D16: 1850
B17: Cash | E17: 1850
A18: 12 th july | B18: Dividend | D18: 41600
B19: Dividend Payable | E19: 41600
A20: 15th July | B20: Salaries | D20: 23750
B21: Wages | D21: 1925
B22: Cash | E22: 25675
A23: 17th July | B23: Office Furniture | D23: 15600
B24: Cash | E24: 15600
A25: 19th July | B25: Telephone | D25: 1400
B26: Cash | E26: 1400
A27: 20th July | B27: Bad Debts | D27: 10000
B28: GM | E28: 10000
A29: 26th july | B29: Treasury stock | D29: 12000
B30: Cash | E30: 12000
A31: 28th July | B31: Cash | D31: 485000
B32: Bonds payable | E32: 485000
A33: 29th July | B33: Salaries | D33: 20500
B34: Wages | D34: 3560
B35: Cash | E35: 24060
A36: 30th July | B36: Legal service | D36: 9025
B37: Cash | E37: 9025
A38: 31st July | B38: 14% notes payable | D38: 25000
B39: Interest expense | D39: 2520
B40: Cash | E40: 27520

Sheet General Journal ADJ
A1: ='Chart of Accounts GL'!A1 -> AC Speed Corporation
A2: General Journal
A4: Date | C4: Accounts | D4: Post Ref | E4: DEBIT | F4: CREDIT
A5: 31st July | C5: Bad debts expense | E5: 7377
C6: Allowance for dubtful accounts | F6: 7377
A7: 31st July | C7: Insurance expense | E7: 5000
C8: Prepaid insurance | F8: 5000
A9: 31st July | C9: Unearned rent | E9: 5000
C10: Rent revenue | F10: 5000
A11: 31st July | C11: Cost of goods sold | E11: 106891
C12: Inventory | F12: 106891
A13: 31st July | C13: Supplies expense | E13: 285
C14: Office supplies | F14: 285
A15: 31st July | C15: Depreciation expense | E15: 71
C16: Accumulated depreciation-Warehouse | F16: 71
A17: 31st July | C17: Depreciation expense | E17: 442
C18: Accumulated depreciation-Office | F18: 442

Sheet General Journal Closing
A1: ='Chart of Accounts GL'!A1 -> AC Speed Corporation
A2: General Journal
A4: Date | B4: Accounts | C4: Post Ref | D4: DEBIT | E4: CREDIT
A5: 31st July | B5: Retained earnings | D5: 12337
B6: Net loss | E6: 12337
A7: 31st July | B7: Retained earnings | D7: 41600
B8: Dividend | E8: 41600

Sheet General Ledger
A1: Account: | B1: ='Chart of Accounts GL'!B9 -> Cash | F1: Account No. | G1: ='Chart of Accounts GL'!A9 -> 100
D2: Transaction | F2: Account Balance
A3: Date | B3: Item | C3: Post Ref | D3: DEBIT | E3: CREDIT | F3: DEBIT | G3: CREDIT
A4: 2011-06-30 | B4: Balance | F4: =65900+15000+13000 -> 93900
B5: Total receipts | D5: 1304374 | F5: =F4+D5 -> 1398274
B6: Total payments | E6: 782986 | F6: =F5-E6 -> 615288
A14: Account: | B14: ='Chart of Accounts GL'!B10 -> Accounts Receivable | F14: Account No. | G14: ='Chart of Accounts GL'!A10 -> 102
D15: Transaction | F15: Account Balance
A16: Date | B16: Item | C16: Post Ref | D16: DEBIT | E16: CREDIT | F16: DEBIT | G16: CREDIT
A17: 2011-06-30 | B17: Balance | F17: 490000
B18: GM | D18: 168000 | E18: 178000 | F18: 480000
B19: Ford Motors | D19: 164650 | E19: 122500 | F19: 522150
B20: Toyota | D20: 84500 | E20: 203550 | F20: 403100
B21: Honda | D21: 74700 | E21: 26250 | F21: 451550
A25: Account: | B25: ='Chart of Accounts GL'!B11 -> Allowance for Doubtful Accounts | F25: Account No. | G25: ='Chart of Accounts GL'!A11 -> 103
D26: Transaction | F26: Account Balance
A27: Date | B27: Item | C27: Post Ref | D27: DEBIT | E27: CREDIT | F27: DEBIT | G27: CREDIT
A28: 2011-06-30 | B28: Balance | G28: 15000
B29: Bad debts expense | E29: 7377 | G29: 22377
A37: Account: | B37: ='Chart of Accounts GL'!B12 -> Merchandise Inventory | F37: Account No. | G37: ='Chart of Accounts GL'!A12 -> 104
D38: Transaction | F38: Account Balance
A39: Date | B39: Item | C39: Post Ref | D39: DEBIT | E39: CREDIT | F39: DEBIT | G39: CREDIT
A40: 2011-06-30 | B40: Balance | F40: ='Inventory Control'!M4+'Inventory Control'!M19+'Inventory Control'!M32 -> 293600
B41: Purchased | D41: 465460
B42: Issued | E42: 449060 | F42: 310000
A51: Account: | B51: ='Chart of Accounts GL'!B13 -> Office Supplies | F51: Account No. | G51: ='Chart of Accounts GL'!A13 -> 105
D52: Transaction | F52: Account Balance
A53: Date | B53: Item | C53: Post Ref | D53: DEBIT | E53: CREDIT | F53: DEBIT | G53: CREDIT
A54: 2011-06-30 | B54: Balance | F54: 2000
B55: A/P | D55: 700 | F55: 2700
B56: Supplies expense | E56: 285 | F56: 2415
A64: Account: | B64: ='Chart of Accounts GL'!B14 -> Prepaid Insurance | F64: Account No. | G64: ='Chart of Accounts GL'!A14 -> 106
D65: Transaction | F65: Account Balance
A66: Date | B66: Item | C66: Post Ref | D66: DEBIT | E66: CREDIT | F66: DEBIT | G66: CREDIT
A67: 2011-06-30 | F67: 30000
B68: Insurance expense | E68: 5000 | F68: 25000
A77: Account: | B77: ='Chart of Accounts GL'!B16 -> Land | F77: Account No. | G77: ='Chart of Accounts GL'!A16 -> 140
D78: Transaction | F78: Account Balance
A79: Date | B79: Item | C79: Post Ref | D79: DEBIT | E79: CREDIT | F79: DEBIT | G79: CREDIT
A80: 2011-06-30 | B80: Balance Carried Forward | D80: 2000600 | F80: 2000600
A90: Account: | B90: ='Chart of Accounts GL'!B17 -> Building | F90: Account No. | G90: ='Chart of Accounts GL'!A17 -> 145
D91: Transaction | F91: Account Balance
A92: Date | B92: Item | C92: Post Ref | D92: DEBIT | E92: CREDIT | F92: DEBIT | G92: CREDIT
A93: 2011-06-30 | B93: Balance Carried Forward | D93: 1500000 | F93: 1500000
A103: Account: | B103: ='Chart of Accounts GL'!B18 -> Accumulated Depreciation - Building | F103: Account No. | G103: ='Chart of Accounts GL'!A18 -> 146
D104: Transaction | F104: Account Balance
A105: Date | B105: Item | C105: Post Ref | D105: DEBIT | E105: CREDIT | F105: DEBIT | G105: CREDIT
A106: 2011-06-30 | B106: Balance Carried Forward | E106: 1500000 | G106: 1500000
A116: Account: | B116: ='Chart of Accounts GL'!B19 -> Equipment & Furniture - Warehouse | F116: Account No. | G116: ='Chart of Accounts GL'!A19 -> 151
D117: Transaction | F117: Account Balance
A118: Date | B118: Item | C118: Post Ref | D118: DEBIT | E118: CREDIT | F118: DEBIT | G118: CREDIT
A119: 2011-06-30 | B119: Balance | F119: 10000
A129: Account: | B129: ='Chart of Accounts GL'!B20 -> Accumulated Depreciation - Equip & Furn. - Warehouse | F129: Account No. | G129: ='Chart of Accounts GL'!A20 -> 152
D130: Transaction | F130: Account Balance
A131: Date | B131: Item | C131: Post Ref | D131: DEBIT | E131: CREDIT | F131: DEBIT | G131: CREDIT
A132: 2011-06-30 | B132: Balance | G132: 1900
B133: Depreciation expense | E133: 71 | G133: 1971
A142: Account: | B142: ='Chart of Accounts GL'!B21 -> Equipment & Furniture - Office | F142: Account No. | G142: ='Chart of Accounts GL'!A21 -> 153
D143: Transaction | F143: Account Balance
A144: Date | B144: Item | C144: Post Ref | D144: DEBIT | E144: CREDIT | F144: DEBIT | G144: CREDIT
A145: 2011-06-30 | B145: Balance | F145: 8500
A155: Account: | B155: ='Chart of Accounts GL'!B22 -> Accumulated Depreciation - Equip & Furn. - Office | F155: Account No. | G155: ='Chart of Accounts GL'!A22 -> 154
D156: Transaction | F156: Account Balance
A157: Date | B157: Item | C157: Post Ref | D157: DEBIT | E157: CREDIT | F157: DEBIT | G157: CREDIT
A158: 2011-06-30 | B158: Balance | G158: 1600
B159: Depreciation expense | E159: 190
B160: Depreciation expense | E160: 252
G161: =2042 -> 2042
A168: Account: | B168: ='Chart of Accounts GL'!B26 -> Accounts Payable | F168: Account No. | G168: ='Chart of Accounts GL'!A26 -> 201
D169: Transaction | F169: Account Balance
A170: Date | B170: Item | C170: Post Ref | D170: DEBIT | E170: CREDIT | F170: DEBIT | G170: CREDIT
A171: 2011-06-30 | B171: Balance | G171: 928100
B172: Garmin | D172: 86800 | E172: 86800 | G172: 0
B173: Gentex | D173: 166000 | E173: 126000 | F173: 40000
B174: Bose | D174: 410900 | E174: 248400 | F174: 162500
B175: office supplies | E175: 700 | G175: 726300
A179: Account: | B179: ='Chart of Accounts GL'!B27 -> Wages Payable | F179: Account No. | G179: ='Chart of Accounts GL'!A27 -> 202
D180: Transaction | F180: Account Balance
A181: Date | B181: Item | C181: Post Ref | D181: DEBIT | E181: CREDIT | F181: DEBIT | G181: CREDIT
A192: Account: | B192: ='Chart of Accounts GL'!B28 -> Interest Payable | F192: Account No. | G192: ='Chart of Accounts GL'!A28 -> 203
D193: Transaction | F193: Account Balance
A194: Date | B194: Item | C194: Post Ref | D194: DEBIT | E194: CREDIT | F194: DEBIT | G194: CREDIT
A205: Account: | B205: ='Chart of Accounts GL'!B29 -> Dividends Payable | F205: Account No. | G205: ='Chart of Accounts GL'!A29 -> 204
D206: Transaction | F206: Account Balance
A207: Date | B207: Item | C207: Post Ref | D207: DEBIT | E207: CREDIT | F207: DEBIT | G207: CREDIT
B208: dividend expense | E208: 41600 | G208: 41600
B209: Cash | D209: 41600 | G209: 0
A218: Account: | B218: ='Chart of Accounts GL'!B30 -> Unearned Rent | F218: Account No. | G218: ='Chart of Accounts GL'!A30 -> 205
D219: Transaction | F219: Account Balance
A220: Date | B220: Item | C220: Post Ref | D220: DEBIT | E220: CREDIT | F220: DEBIT | G220: CREDIT
B221: Cash | E221: 15000 | G221: 15000
B222: Rent revenue | D222: 5000 | G222: 10000
A230: Account: | B230: ='Chart of Accounts GL'!B32 -> Notes Payable | F230: Account No. | G230: ='Chart of Accounts GL'!A32 -> 250
D231: Transaction | F231: Account Balance
A232: Date | B232: Item | C232: Post Ref | D232: DEBIT | E232: CREDIT | F232: DEBIT | G232: CREDIT
B233: Cash | G233: 216000
B234: Cash | D234: 25000 | G234: 191000
A242: Account: | B242: ='Chart of Accounts GL'!B33 -> Bonds Payable | F242: Account No. | G242: ='Chart of Accounts GL'!A33 -> 251
D243: Transaction | F243: Account Balance
A244: Date | B244: Item | C244: Post Ref | D244: DEBIT | E244: CREDIT | F244: DEBIT | G244: CREDIT
B245: Cash | G245: 485000
A254: Account: | B254: ='Chart of Accounts GL'!B34 -> Mortgage (Warehouse) Payable | F254: Account No. | G254: ='Chart of Accounts GL'!A34 -> 252
D255: Transaction | F255: Account Balance
A256: Date | B256: Item | C256: Post Ref | D256: DEBIT | E256: CREDIT | F256: DEBIT | G256: CREDIT
A257: 2011-07-01 | G257: 200000
B258: Cash | D258: 6000 | G258: 194000
A265: Account: | B265: ='Chart of Accounts GL'!B36 -> Common Stock, $1 Par, 125,000 Authorized; 75,000 shares Issued/Outstanding | F265: Account No. | G265: ='Chart of Accounts GL'!A36 -> 300
D266: Transaction | F266: Account Balance
A267: Date | B267: Item | C267: Post Ref | D267: DEBIT | E267: CREDIT | F267: DEBIT | G267: CREDIT
A268: 2011-06-30 | B268: Balance | G268: =75000*1 -> 75000
B269: Cash | E269: 8200 | G269: 83200
A278: Account: | B278: ='Chart of Accounts GL'!B37 -> Paid In Capital - Excess of Par | F278: Account No. | G278: ='Chart of Accounts GL'!A37 -> 301
D279: Transaction | F279: Account Balance
A280: Date | B280: Item | C280: Post Ref | D280: DEBIT | E280: CREDIT | F280: DEBIT | G280: CREDIT
A281: 2011-06-30 | G281: 1341000
B282: Cash | E282: 82000 | G282: 1423000
A290: Account: | B290: ='Chart of Accounts GL'!B38 -> Retained Earnings | F290: Account No. | G290: ='Chart of Accounts GL'!A38 -> 330
D291: Transaction | F291: Account Balance
A292: Date | B292: Item | C292: Post Ref | D292: DEBIT | E292: CREDIT | F292: DEBIT | G292: CREDIT
A293: 2011-06-30 | B293: Balance Brought Forward | G293: =389000+377000-400000 -> 366000
A302: Account: | B302: ='Chart of Accounts GL'!B39 -> Treasury Stock | F302: Account No. | G302: ='Chart of Accounts GL'!A39 -> 340
D303: Transaction | F303: Account Balance
A304: Date | B304: Item | C304: Post Ref | D304: DEBIT | E304: CREDIT | F304: DEBIT | G304: CREDIT
B305: Cash | D305: 12000 | F305: 12000
A314: Account: | B314: ='Chart of Accounts GL'!B42 -> Sales | F314: Account No. | G314: ='Chart of Accounts GL'!A42 -> 500
D315: Transaction | F315: Account Balance
A316: Date | B316: Item | C316: Post Ref | D316: DEBIT | E316: CREDIT | F316: DEBIT | G316: CREDIT
B317: GM | E317: 168000
B318: Honda | E318: 74700
B319: Tyota | E319: 84500
B320: Ford | E320: 164650 | G320: 491850
A327: Account: | B327: ='Chart of Accounts GL'!B43 -> Sales Discounts | F327: Account No. | G327: ='Chart of Accounts GL'!A43 -> 510
D328: Transaction | F328: Account Balance
A329: Date | B329: Item | C329: Post Ref | D329: DEBIT | E329: CREDIT | F329: DEBIT | G329: CREDIT
B330: GM | D330: 4838
B331: Honda | D331: 787
B332: Toyota | D332: 6106
B333: Ford | D333: 3675 | F333: 15406
A340: Account: | B340: ='Chart of Accounts GL'!B44 -> Sales Returns & Allowances | F340: Account No. | G340: ='Chart of Accounts GL'!A44 -> 511
D341: Transaction | F341: Account Balance
A342: Date | B342: Item | C342: Post Ref | D342: DEBIT | E342: CREDIT | F342: DEBIT | G342: CREDIT
B343: GM | D343: 6720 | F343: 6720
A353: Account: | B353: ='Chart of Accounts GL'!B46 -> Cost of Goods Sold | F353: Account No. | G353: ='Chart of Accounts GL'!A46 -> 600
D354: Transaction | F354: Account Balance
A355: Date | B355: Item | C355: Post Ref | D355: DEBIT | E355: CREDIT | F355: DEBIT | G355: CREDIT
B356: Inventory | D356: 387666 | F356: 387666
B357: Inventory | E357: 4260 | F357: 383406
A366: Account: | B366: ='Chart of Accounts GL'!B48 -> Wage Expense (hourly workers) | F366: Account No. | G366: ='Chart of Accounts GL'!A48 -> 700
D367: Transaction | F367: Account Balance
A368: Date | B368: Item | C368: Post Ref | D368: DEBIT | E368: CREDIT | F368: DEBIT | G368: CREDIT
B369: Cash | D369: 1925
B370: Cash | D370: 3560 | F370: 5485
A379: Account: | B379: ='Chart of Accounts GL'!B49 -> Salaries Expense (Exempt Staff) | F379: Account No. | G379: ='Chart of Accounts GL'!A49 -> 701
D380: Transaction | F380: Account Balance
A381: Date | B381: Item | C381: Post Ref | D381: DEBIT | E381: CREDIT | F381: DEBIT | G381: CREDIT
B382: Cash | D382: 23750
B383: Cash | D383: 20500 | F383: 44250
A392: Account: | B392: ='Chart of Accounts GL'!B50 -> Marketing Expense | F392: Account No. | G392: ='Chart of Accounts GL'!A50 -> 702
D393: Transaction | F393: Account Balance
A394: Date | B394: Item | C394: Post Ref | D394: DEBIT | E394: CREDIT | F394: DEBIT | G394: CREDIT
A405: Account: | B405: ='Chart of Accounts GL'!B51 -> Travel and Entertainment Expense | F405: Account No. | G405: ='Chart of Accounts GL'!A51 -> 703
D406: Transaction | F406: Account Balance
A407: Date | B407: Item | C407: Post Ref | D407: DEBIT | E407: CREDIT | F407: DEBIT | G407: CREDIT
B408: Cash | D408: 300 | F408: 300
A418: Account: | B418: ='Chart of Accounts GL'!B52 -> Bad Debt Expense | F418: Account No. | G418: ='Chart of Accounts GL'!A52 -> 704
D419: Transaction | F419: Account Balance
A420: Date | B420: Item | C420: Post Ref | D420: DEBIT | E420: CREDIT | F420: DEBIT | G420: CREDIT
B421: GM | D421: 10000
B422: Discount for doubtful | D422: 7377 | F422: 17377
A431: Account: | B431: ='Chart of Accounts GL'!B53 -> Property Tax Expense | F431: Account No. | G431: ='Chart of Accounts GL'!A53 -> 705
D432: Transaction | F432: Account Balance
A433: Date | B433: Item | C433: Post Ref | D433: DEBIT | E433: CREDIT | F433: DEBIT | G433: CREDIT
A444: Account: | B444: ='Chart of Accounts GL'!B54 -> Maintenance & Repair Expense | F444: Account No. | G444: ='Chart of Accounts GL'!A54 -> 706
D445: Transaction | F445: Account Balance
A446: Date | B446: Item | C446: Post Ref | D446: DEBIT | E446: CREDIT | F446: DEBIT | G446: CREDIT
B447: Cash | D447: 650 | F447: 650
A457: Account: | B457: ='Chart of Accounts GL'!B55 -> Legal Expenses | F457: Account No. | G457: ='Chart of Accounts GL'!A55 -> 707
D458: Transaction | F458: Account Balance
A459: Date | B459: Item | C459: Post Ref | D459: DEBIT | E459: CREDIT | F459: DEBIT | G459: CREDIT
B460: Cash | D460: 9025 | F460: 9025
A470: Account: | B470: ='Chart of Accounts GL'!B56 -> Insurance Expense | F470: Account No. | G470: ='Chart of Accounts GL'!A56 -> 708
D471: Transaction | F471: Account Balance
A472: Date | B472: Item | C472: Post Ref | D472: DEBIT | E472: CREDIT | F472: DEBIT | G472: CREDIT
B473: Prepaid expense | D473: 5000 | F473: 5000
A483: Account: | B483: ='Chart of Accounts GL'!B57 -> Utilities Expense | F483: Account No. | G483: ='Chart of Accounts GL'!A57 -> 709
D484: Transaction | F484: Account Balance
A485: Date | B485: Item | C485: Post Ref | D485: DEBIT | E485: CREDIT | F485: DEBIT | G485: CREDIT
B486: Cash | D486: 1850 | F486: 1850
A496: Account: | B496: ='Chart of Accounts GL'!B58 -> Office Supplies Expense | F496: Account No. | G496: ='Chart of Accounts GL'!A58 -> 710
D497: Transaction | F497: Account Balance
A498: Date | B498: Item | C498: Post Ref | D498: DEBIT | E498: CREDIT | F498: DEBIT | G498: CREDIT
B499: Supplies | D499: 285 | F499: 285
A509: Account: | B509: ='Chart of Accounts GL'!B59 -> Telecommunications Expense | F509: Account No. | G509: ='Chart of Accounts GL'!A59 -> 711
D510: Transaction | F510: Account Balance
A511: Date | B511: Item | C511: Post Ref | D511: DEBIT | E511: CREDIT | F511: DEBIT | G511: CREDIT
B512: Cash | D512: 1400 | F512: 1400
A521: Account: | B521: ='Chart of Accounts GL'!B60 -> Depreciation Expense - Equip & Furniture - Warehouse | F521: Account No. | G521: ='Chart of Accounts GL'!A60 -> 712
D522: Transaction | F522: Account Balance
A523: Date | B523: Item | C523: Post Ref | D523: DEBIT | E523: CREDIT | F523: DEBIT | G523: CREDIT
B524: Accumulated Depreciation | D524: 71 | F524: 71
... 19 more rows

Sheet AR Ledger
A1: Account: | B1: ='Chart of Accounts AR Ledger'!B5 -> General Motors
C2: Transaction | E2: Account Balance
A3: Date | B3: Post Ref | C3: DEBIT | D3: CREDIT | E3: DEBIT | F3: CREDIT
A4: 2011-06-30 | E4: 10000
A5: 2012-07-01 | C5: 168000 | E5: 178000
A6: 2012-07-04 | D6: 6720 | E6: =E5-D6 -> 171280
A7: 2012-07-11 | D7: 161280 | E7: 10000
A8: 2012-07-23 | D8: 10000 | E8: 0
A17: Account: | B17: ='Chart of Accounts AR Ledger'!B6 -> Ford Motor Co.
C18: Transaction | E18: Account Balance
A19: Date | B19: Post Ref | C19: DEBIT | D19: CREDIT | E19: DEBIT | F19: CREDIT
A20: 2011-06-05 | C20: 200000 | E20: =C20 -> 200000
A21: 2012-07-20 | D21: 122500 | E21: 77500
A22: 2012-07-27 | C22: 164650 | E22: 242150
A30: Account: | B30: ='Chart of Accounts AR Ledger'!B7 -> Toyota
C31: Transaction | E31: Account Balance
A32: Date | B32: Post Ref | C32: DEBIT | D32: CREDIT | E32: DEBIT | F32: CREDIT
A33: 2011-06-11 | C33: 200000 | E33: 200000
A34: 2012-07-03 | C34: 84500 | E34: 284500
A35: 2012-07-13 | D35: 84500 | E35: 200000
A36: 2012-07-25 | D36: 119050 | E36: 80950
A43: Account: | B43: ='Chart of Accounts AR Ledger'!B8 -> Honda
C44: Transaction | E44: Account Balance
A45: Date | B45: Post Ref | C45: DEBIT | D45: CREDIT | E45: DEBIT | F45: CREDIT
A46: 2012-07-02 | C46: 26250 | E46: 26250
A47: 2012-07-12 | D47: 26250 | E47: 0
A48: 2012-07-26 | C48: 48450 | E48: 48450

Sheet AP ledger
A3: Account: | B3: ='Chart of Accounts AP Ledger'!B6 -> Garmin | E3: Account No.
C4: Transaction | E4: Account Balance
A5: Date | B5: Post Ref | C5: DEBIT | D5: CREDIT | E5: DEBIT | F5: CREDIT
A6: 2011-06-30 | F6: 18000
A7: 2012-07-12 | D7: 86800 | F7: 104800
A8: 2012-07-19 | C8: 43400 | F8: 61400
A9: 2012-07-22 | C9: 43400 | F9: 18000
A16: Account: | B16: ='Chart of Accounts AP Ledger'!B9 -> Gentex | E16: Account No.
C17: Transaction | E17: Account Balance
A18: Date | B18: Post Ref | C18: DEBIT | D18: CREDIT | E18: DEBIT | F18: CREDIT
A19: 2011-06-27 | F19: 40000
A20: 2012-07-01 | D20: 126000 | F20: 176000
A21: 2012-07-11 | C21: 126000 | F21: 40000
A22: 2012-07-27 | C22: 40000 | F22: 0
A29: Account: | B29: ='Chart of Accounts AP Ledger'!B8 -> Bose | E29: Account No.
C30: Transaction | E30: Account Balance
A31: Date | B31: Post Ref | C31: DEBIT | D31: CREDIT | E31: DEBIT | F31: CREDIT
A32: 2011-06-30 | D32: 162500 | F32: =D32 -> 162500
A33: 2012-07-03 | D33: 248400 | F33: 410900
A34: 2012-07-05 | C34: 4260 | F34: 406640
A35: 2012-07-13 | C35: 248400 | F35: 158240
A36: 2012-07-29 | C36: 158240 | F36: 0

Sheet Worksheet July 2011
C1: Unadjusted | G1: Adjusted | I1: Income | K1: Bal. Sheet
C2: Trial Balance | E2: Adjustments | G2: Trial Balance | I2: Statement | K2: Stmt. Own. Equity
A3: Acct. No. | B3: Account Title | C3: Dr. | D3: Cr. | E3: Dr. | F3: Cr. | G3: Dr. | H3: Cr. | I3: Dr. | J3: Cr. | K3: Dr. | L3: Cr.
A4: ='Chart of Accounts GL'!A9 -> 100 | B4: ='Chart of Accounts GL'!B9 -> Cash | C4: 93900 | E4: =G4-C4 -> 521388 | G4: 615288 | K4: 615288
A5: ='Chart of Accounts GL'!A10 -> 102 | B5: ='Chart of Accounts GL'!B10 -> Accounts Receivable | C5: 490000 | F5: 38450 | G5: 451550 | K5: =451550-22377 -> 429173
A6: ='Chart of Accounts GL'!A11 -> 103 | B6: ='Chart of Accounts GL'!B11 -> Allowance for Doubtful Accounts | D6: 15000 | F6: =H6-D6 -> 7377 | H6: 22377
A7: ='Chart of Accounts GL'!A12 -> 104 | B7: ='Chart of Accounts GL'!B12 -> Merchandise Inventory | C7: 293600 | E7: =G7-C7 -> 16400 | G7: 310000 | K7: 310000
A8: ='Chart of Accounts GL'!A13 -> 105 | B8: ='Chart of Accounts GL'!B13 -> Office Supplies | C8: 2000 | E8: =G8-C8 -> 415 | G8: 2415 | K8: 2415
A9: ='Chart of Accounts GL'!A14 -> 106 | B9: ='Chart of Accounts GL'!B14 -> Prepaid Insurance | C9: 30000 | F9: 5000 | G9: 25000 | K9: 25000
A10: ='Chart of Accounts GL'!A16 -> 140 | B10: ='Chart of Accounts GL'!B16 -> Land | C10: 2000600 | G10: 2000600 | K10: 2000600
A11: ='Chart of Accounts GL'!A17 -> 145 | B11: ='Chart of Accounts GL'!B17 -> Building | C11: 1500000 | G11: 1500000 | K11: 0
A12: ='Chart of Accounts GL'!A18 -> 146 | B12: ='Chart of Accounts GL'!B18 -> Accumulated Depreciation - Building | D12: 1500000 | H12: 1500000 | L12: 0
A13: ='Chart of Accounts GL'!A19 -> 151 | B13: ='Chart of Accounts GL'!B19 -> Equipment & Furniture - Warehouse | C13: 10000 | G13: 10000 | K13: =10000-1971 -> 8029
A14: ='Chart of Accounts GL'!A20 -> 152 | B14: ='Chart of Accounts GL'!B20 -> Accumulated Depreciation - Equip & Furn. - Warehouse | D14: 1900 | F14: 71 | H14: 1971
A15: ='Chart of Accounts GL'!A21 -> 153 | B15: ='Chart of Accounts GL'!B21 -> Equipment & Furniture - Office | C15: 8500 | E15: 15600 | G15: 24100 | K15: =24100-2042 -> 22058
A16: ='Chart of Accounts GL'!A22 -> 154 | B16: ='Chart of Accounts GL'!B22 -> Accumulated Depreciation - Equip & Furn. - Office | D16: 1600 | F16: 442 | H16: 2042
A17: ='Chart of Accounts GL'!A26 -> 201 | B17: ='Chart of Accounts GL'!B26 -> Accounts Payable | D17: 928100 | E17: =D17-H17 -> 201800 | H17: 726300 | L17: 726300
A18: ='Chart of Accounts GL'!A27 -> 202 | B18: ='Chart of Accounts GL'!B27 -> Wages Payable
A19: ='Chart of Accounts GL'!A28 -> 203 | B19: ='Chart of Accounts GL'!B28 -> Interest Payable
A20: ='Chart of Accounts GL'!A29 -> 204 | B20: ='Chart of Accounts GL'!B29 -> Dividends Payable | E20: 41600 | G20: 41600
A21: ='Chart of Accounts GL'!A30 -> 205 | B21: ='Chart of Accounts GL'!B30 -> Unearned Rent | F21: 10000 | H21: 10000 | L21: 10000
A22: ='Chart of Accounts GL'!A32 -> 250 | B22: ='Chart of Accounts GL'!B32 -> Notes Payable | F22: 191000 | H22: 191000 | L22: 191000
A23: ='Chart of Accounts GL'!A33 -> 251 | B23: ='Chart of Accounts GL'!B33 -> Bonds Payable | F23: 485000 | H23: 485000 | L23: 485000
A24: ='Chart of Accounts GL'!A34 -> 252 | B24: ='Chart of Accounts GL'!B34 -> Mortgage (Warehouse) Payable | D24: 200000 | E24: 6000 | H24: 194000 | L24: 194000
A25: ='Chart of Accounts GL'!A36 -> 300 | B25: ='Chart of Accounts GL'!B36 -> Common Stock, $1 Par, 125,000 Authorized; 75,000 shares Issued/Outstanding | D25: 75000 | F25: 8200 | H25: 83200 | L25: 83200
A26: ='Chart of Accounts GL'!A37 -> 301 | B26: ='Chart of Accounts GL'!B37 -> Paid In Capital - Excess of Par | D26: 1341000 | F26: 82000 | H26: 1423000 | L26: 1423000
A27: ='Chart of Accounts GL'!A38 -> 330 | B27: ='Chart of Accounts GL'!B38 -> Retained Earnings | D27: 366000 | H27: 366000 | L27: =366000-41600-12337 -> 312063
A28: ='Chart of Accounts GL'!A39 -> 340 | B28: ='Chart of Accounts GL'!B39 -> Treasury Stock | E28: 12000 | G28: 12000 | K28: 12000
A29: ='Chart of Accounts GL'!A42 -> 500 | B29: ='Chart of Accounts GL'!B42 -> Sales | F29: 491850 | H29: 491850 | J29: 491850
A30: ='Chart of Accounts GL'!A43 -> 510 | B30: ='Chart of Accounts GL'!B43 -> Sales Discounts | E30: 15406 | G30: 15406 | I30: 15406
A31: ='Chart of Accounts GL'!A44 -> 511 | B31: ='Chart of Accounts GL'!B44 -> Sales Returns & Allowances | E31: 6720 | G31: 6720 | I31: 6720
A32: ='Chart of Accounts GL'!A46 -> 600 | B32: ='Chart of Accounts GL'!B46 -> Cost of Goods Sold | E32: 383406 | G32: 383406 | I32: 383406
A33: ='Chart of Accounts GL'!A48 -> 700 | B33: ='Chart of Accounts GL'!B48 -> Wage Expense (hourly workers) | E33: 5485 | G33: 5485 | I33: 5485
A34: ='Chart of Accounts GL'!A49 -> 701 | B34: ='Chart of Accounts GL'!B49 -> Salaries Expense (Exempt Staff) | E34: 44250 | G34: 44250 | I34: 44250
A35: ='Chart of Accounts GL'!A50 -> 702 | B35: ='Chart of Accounts GL'!B50 -> Marketing Expense
A36: ='Chart of Accounts GL'!A51 -> 703 | B36: ='Chart of Accounts GL'!B51 -> Travel and Entertainment Expense | E36: 300 | G36: 300 | I36: 300
A37: ='Chart of Accounts GL'!A52 -> 704 | B37: ='Chart of Accounts GL'!B52 -> Bad Debt Expense | E37: 17377 | G37: 17377 | I37: 17377
A38: ='Chart of Accounts GL'!A53 -> 705 | B38: ='Chart of Accounts GL'!B53 -> Property Tax Expense
A39: ='Chart of Accounts GL'!A54 -> 706 | B39: ='Chart of Accounts GL'!B54 -> Maintenance & Repair Expense | E39: 650 | G39: 650 | I39: 650
A40: ='Chart of Accounts GL'!A55 -> 707 | B40: ='Chart of Accounts GL'!B55 -> Legal Expenses | E40: 9025 | G40: 9025 | I40: 9025
A41: ='Chart of Accounts GL'!A56 -> 708 | B41: ='Chart of Accounts GL'!B56 -> Insurance Expense | E41: 5000 | G41: 5000 | I41: 5000
A42: ='Chart of Accounts GL'!A57 -> 709 | B42: ='Chart of Accounts GL'!B57 -> Utilities Expense | E42: 1850 | G42: 1850 | I42: 1850
A43: ='Chart of Accounts GL'!A58 -> 710 | B43: ='Chart of Accounts GL'!B58 -> Office Supplies Expense | E43: 285 | G43: 285 | I43: 285
A44: ='Chart of Accounts GL'!A59 -> 711 | B44: ='Chart of Accounts GL'!B59 -> Telecommunications Expense | E44: 1400 | G44: 1400 | I44: 1400
A45: ='Chart of Accounts GL'!A60 -> 712 | B45: ='Chart of Accounts GL'!B60 -> Depreciation Expense - Equip & Furniture - Warehouse | E45: 71 | G45: 71 | I45: 71
A46: ='Chart of Accounts GL'!A61 -> 713 | B46: ='Chart of Accounts GL'!B61 -> Depreciation Expense - Equip & Furniture - Office | E46: 442 | G46: 442 | I46: 442
A47: ='Chart of Accounts GL'!A63 -> 800 | B47: ='Chart of Accounts GL'!B63 -> Rent Income | F47: 5000 | H47: 5000 | J47: 5000
A48: ='Chart of Accounts GL'!A65 -> 900 | B48: ='Chart of Accounts GL'!B65 -> Interest Expense | E48: 17520 | G48: 17520 | I48: 17520
B49: Total | C49: 4428600 | D49: 4428600 | E49: 1324390 | F49: 1324390 | G49: 5501740 | H49: 5501740 | I49: 509187 | J49: 496850 | K49: 3424563 | L49: 3424563
B51: Net Income (Loss) | J51: =I49-J49 -> 12337
B52: Total
B55: Note:-
B56: There is a diffrence of 20500 in the unadjusted trial balance and I have adjusted the trial balance according to information given below

Sheet IS July 2011
A2: Income Statement
A4: INCOME STATEMENT ACCOUNTS
A5: Revenue
A6: Sales | C6: 491850
A7: Sales Discounts | B7: 15406
A8: Sales Returns & Allowances | B8: 6720
A9: Cost of Goods Sold | B9: 383406
A10: Cost of Goods Sold | B10: 383406
A11: Operating Expenses
A12: Wage Expense (hourly workers) | B12: 5485
A13: Salaries Expense (Exempt Staff) | B13: 44250
A14: Marketing Expense
A15: Travel and Entertainment Expense | B15: 300
A16: Bad Debt Expense | B16: 17377
A17: Property Tax Expense
A18: Maintenance & Repair Expense | B18: 650
A19: Legal Expenses | B19: 9025
A20: Insurance Expense | B20: 5000
A21: Utilities Expense | B21: 1850
A22: Office Supplies Expense | B22: 285
A23: Telecommunications Expense | B23: 1400
A24: Depreciation Expense - Equip & Furniture - Warehouse | B24: 71
A25: Depreciation Expense - Equip & Furniture - Office | B25: 442
A26: Other Income
A27: Rent Income | C27: 5000
A28: Other Expenses
A29: Interest Expense | B29: 17520
A31: Net Income/ Loss | C31: 12337

Sheet Stmt RE July 2011
A2: Statement of Retained Earnings
A5: Opening Balance | C5: 366000
A6: Less:-
A7: Dividend | B7: 41600
A8: Net loss | B8: 12337
A9: Closing Balance | C9: =C5-SUM(B7:B8) -> 312063

Sheet BS July 2011
A2: Balance Sheet
A4: Liabilities | C4: Assets
A5: Current Liabilities | C5: Current Assets
A6: Accounts Payable | B6: 726300 | C6: Cash | D6: 615288
A7: Wages Payable | C7: Accounts Receivable | D7: =451550-22377 -> 429173
A8: Interest Payable
A9: Dividends Payable | C9: Merchandise Inventory | D9: 310000
A10: Unearned Rent | B10: 10000 | C10: Office Supplies | D10: 2415
A11: Long-Term Liabilities | C11: Prepaid Insurance | D11: 25000
A12: Notes Payable | B12: 191000 | C12: Property, Plant and Equipment
A13: Bonds Payable | B13: 485000 | C13: Land | D13: 2000600
A14: Mortgage (Warehouse) Payable | B14: 194000 | C14: Building
A15: Capital (Equity)
A16: Common Stock, $1 Par, | C16: Equipment & Furniture - Warehouse | D16: 8029
A17: 125,000 Authorized; 75,000 shares Issued/Outstanding | B17: 83200
A18: Paid In Capital - Excess of Par | B18: 1423000 | C18: Equipment & Furniture - Office | D18: 22058
A19: Retained Earnings | B19: =366000-41600-12337 -> 312063
A20: Treasury Stock | B20: -12000
A22: TOTAL | B22: 3412563 | C22: TOTAL | D22: 3412563

Sheet Post Closing Trial Balance
A1: ='IS July 2011'!A1 -> 0
A2: Post-closing Trial Balance
B4: DEBIT | C4: CREDIT
A5: Cash | B5: 615288
A6: Accounts Receivable | B6: =451550-22377 -> 429173
A8: Merchandise Inventory | B8: 310000
A9: Office Supplies | B9: 2415
A10: Prepaid Insurance | B10: 25000
A11: Property, Plant and Equipment
A12: Land | B12: 2000600
A13: Building
A15: Equipment & Furniture - Warehouse | B15: 8029
A17: Equipment & Furniture - Office | B17: 22058
A19: Accounts Payable | C19: 726300
A20: Wages Payable
A21: Interest Payable
A22: Dividends Payable
A23: Unearned Rent | C23: 10000
A24: Long-Term Liabilities
A25: Notes Payable | C25: 191000
A26: Bonds Payable | C26: 485000
A27: Mortgage (Warehouse) Payable | C27: 194000
A28: Capital (Equity)
A29: Common Stock, $1 Par,
A30: 125,000 Authorized; 75,000 shares Issued/Outstanding | C30: 83200
A31: Paid In Capital - Excess of Par | C31: 1423000
A32: Retained Earnings | C32: =366000-41600-12337 -> 312063
A33: Treasury Stock | B33: 12000
A34: TOTAL | B34: 3424563 | C34: 3424563

Sheet Comparative IS
A1: AC Speed Corporation
A2: Income Statement | K2: 2009 | M2: 2010 | O2: 2011
B3: 2011-12-31 | D3: 2010-12-31 | F3: 2009-12-31 | H3: 2008-12-31 | J3: 2011-07-31 | K3: INCREASE/DECREASE | L3: % CHANGE | M3: INCREASE/DECREASE | N3: % CHANGE | O3: INCREASE/DECREASE | P3: % CHANGE
A4: Sales | B4: =7564325+24670 -> 7588995 | D4: =6255371+4050+73502+14000+30000 -> 6376923 | F4: =6354521+26786-80026-43000-41000-13000 -> 6204281 | H4: =5689605+168472-34977 -> 5823100 | J4: 750000 | K4: =(F4-H4) -> 381181 | L4: =K4/H4 -> 0.06546015009 | M4: =D4-F4 -> 172642 | N4: =M4/F4 -> 0.02782627028 | O4: =B4-D4 -> 1212072 | P4: =O4/D4 -> 0.1900716066
A5: Less sales discount | B5: =140254+(0.6*24670) -> 155056 | D5: =123746.4+(73502*0.6) -> 167847.6 | F5: =126221.328+(26786*0.3) -> 134257.128 | H5: =100142+13990.8 -> 114132.8 | J5: 10110 | K5: =(F5-H5) -> 20124.328 | L5: =K5/H5 -> 0.1763237912 | M5: =D5-F5 -> 33590.472 | N5: =M5/F5 -> 0.2501950734 | O5: =B5-D5 -> -12791.6 | P5: =O5/D5 -> -0.07620960919
A6: Less Sales return | B6: =98874+(24670*0.4) -> 108742 | D6: =97920+(73502*0.4) -> 127320.8 | F6: =99878.4+(26786*0.7) -> 118628.6 | H6: =100877.184+20986.2 -> 121863.384 | J6: 8000 | K6: -3234.784 | L6: -0.0265443474 | M6: 8692.2 | N6: 0.0732723812 | O6: -18578.8 | P6: -0.1459211692
A7: Net sales (A) | B7: =B4-B5-B6 -> 7325197 | D7: =D4-D5-D6 -> 6081754.6 | F7: =F4-F5-F6 -> 5951395.272 | H7: =H4-H5-H6 -> 5587103.816 | J7: =J4-J5-J6 -> 731890 | K7: =(F7-H7) -> 364291.456 | L7: =K7/H7 -> 0.06520219921 | M7: 130359.328 | N7: 0.02190399428 | O7: 1243442.4 | P7: 0.20445455
A8: Less
A9: Cost of goods sold | B9: =5548521-96054+182555 -> 5635022 | D9: =4375062-89022+400500-114000+14000+30000 -> 4616540 | F9: =4500254-62350+83252+54000 -> 4575156 | H9: =4150254-101822+50923+104500 -> 4203855 | J9: =349715+107317 -> 457032 | K9: =(F9-H9) -> 371301 | L9: =K9/H9 -> 0.08832393125 | M9: =D9-F9 -> 41384 | N9: =M9/F9 -> 0.009045374628 | O9: 1018482 | P9: 0.2206158725
A10: Wage expense | B10: =95410-1933 -> 93477 | D10: =87148.8-542 -> 86606.8 | F10: =88891.776-104 -> 88787.776 | H10: =89780.69376-23 -> 89757.69376 | J10: 7120 | K10: =(F10-H10) -> -969.91776 | L10: =K10/H10 -> -0.01080595679 | M10: =D10-F10 -> -2180.976 | N10: =M10/F10 -> -0.02456392195 | O10: 6870.2 | P10: 0.07932633465
A11: Salaries expense | B11: =510000+36225 -> 546225 | D11: =501840+31222 -> 533062 | F11: =511876.8+13040 -> 524916.8 | H11: =516995.568+11860 -> 528855.568 | J11: 41000 | K11: -3938.768 | L11: -0.007447719639 | M11: 8145.2 | N11: 0.01551712576 | O11: 13163 | P11: 0.02469318766
A12: Marketing expense | B12: =20540+740 -> 21280 | D12: =18360+72 -> 18432 | F12: =18727.2-1800 -> 16927.2 | H12: =18914.472-3090 -> 15824.472 | J12: 1500 | K12: 1102.728 | L12: 0.06968497906 | M12: 1504.8 | N12: 0.08889834113 | O12: 2848 | P12: 0.1545138889
A13: Travel & entertainmnet expense | B13: =10580+6880 -> 17460 | D13: =9792+3654 -> 13446 | F13: =9987.84+1411 -> 11398.84 | H13: =10087.7184-1238 -> 8849.7184 | J13: 800 | K13: 2549.1216 | L13: 0.2880455044 | M13: 2047.16 | N13: 0.179593713 | O13: 4014 | P13: 0.2985274431
A14: Bad debts expense | B14: =185202+4512 -> 189714 | D14: =110160+4053 -> 114213 | F14: =112363.2+13980-11800 -> 114543.2 | H14: =113486.832+3031 -> 116517.832 | J14: 9000 | K14: -1974.632 | L14: -0.01694703691 | M14: -330.2 | N14: -0.002882755153 | O14: 75501 | P14: 0.6610543458
A15: Property tax expense | B15: 0 | D15: 0 | F15: 0 | H15: 0
A16: Maintanence & repair expense | B16: =6000-242 -> 5758 | D16: =6120-159 -> 5961 | F16: =6242.4+1500 -> 7742.4 | H16: =6304.824+1695 -> 7999.824 | J16: 500 | K16: -257.424 | L16: -0.03217870793 | M16: -1781.4 | N16: -0.230083695 | O16: -203 | P16: -0.03405468881
A17: Legal expense | B17: =64000+3201 -> 67201 | D17: =63000+2611 -> 65611 | F17: =62424+987 -> 63411 | H17: =63048.24-5374 -> 57674.24 | J17: 5060 | K17: 5736.76 | L17: 0.09946832416 | M17: 2200 | N17: 0.03469429594 | O17: 1590 | P17: 0.02423374129
A18: Insurance expense | B18: =48000+850 -> 48850 | D18: =48960+1446 -> 50406 | F18: =49939.2+2351 -> 52290.2 | H18: =50438.592+202+3555 -> 54195.592 | J18: 4300 | K18: -1905.392 | L18: -0.03515769327 | M18: -1884.2 | N18: -0.03603352062 | O18: -1556 | P18: -0.03086934095
A19: Utilities expense | B19: =18000+60 -> 18060 | D19: =18360+10 -> 18370 | F19: =18727.2+644 -> 19371.2 | H19: =18914.472+1114 -> 20028.472 | J19: 1750 | K19: -657.272 | L19: -0.03281688189 | M19: -1001.2 | N19: -0.05168497563 | O19: -310 | P19: -0.01687534023
A20: Office supplies expense | B20: =5220-1100 -> 4120 | D20: =5324.4-555 -> 4769.4 | F20: =5430.988+75 -> 5505.988 | H20: =5485.19688+220 -> 5705.19688 | J20: 435 | K20: -199.20888 | L20: -0.03491709124 | M20: -736.588 | N20: -0.1337794416 | O20: -649.4 | P20: -0.1361596847
A21: Telecommunication expense | B21: 0 | D21: 0 | F21: 0 | H21: 0
A22: Depreciation expense-Warehouse | B22: =1700+302 -> 2002 | D22: =1732+263 -> 1995 | F22: =1768.68-89 -> 1679.68 | H22: =1786.3668-395 -> 1391.3668 | J22: 141.6666667 | K22: 288.3132 | L22: 0.2072158111 | M22: 315.32 | N22: 0.1877262336 | O22: 7 | P22: 0.00350877193
A23: Depreciation expense-Office furniture | B23: =3526+280 -> 3806 | D23: =2815.2+455 -> 3270.2 | F23: =2871.504+107 -> 2978.504 | H23: =2900.21904-516 -> 2384.21904 | J23: 230 | K23: 594.28496 | L23: 0.2492577024 | M23: 291.696 | N23: 0.0979337278 | O23: 535.8 | P23: 0.16384319
A24: Interest expense | B24: =150000+4650 -> 154650 | D24: =153000+4800 -> 157800 | F24: =156060+5400 -> 161460 | H24: =157620.6+12663 -> 170283.6 | J24: 12500 | K24: -8823.6 | L24: -0.05181708632 | M24: -3660 | N24: -0.0226681531 | O24: -3150 | P24: -0.01996197719
A25: Total expenses (B) | B25: =SUM(B9:B24) -> 6807625 | D25: =SUM(D9:D24) -> 5690482.4 | F25: =SUM(F9:F24) -> 5646168.788 | H25: =SUM(H9:H24) -> 5283322.795 | J25: =SUM(J9:J24) -> 541368.6667 | K25: =(F25-H25) -> 362845.9931 | L25: 0.06867761203 | M25: 44313.612 | N25: 0.007848439121 | O25: 1117142.6 | P25: 0.1963177322
A26: Add Rent income (c ) | B26: 23620 | D26: =24480-370 -> 24110 | F26: 24969.6 | H26: =25220.296+355 -> 25575.296 | J26: 3640 | K26: -605.696 | L26: -0.02368285395 | M26: -859.6 | N26: -0.03442586185 | O26: -490 | P26: -0.02032351721
A27: Net income (A-B+C) | B27: =B7-B25+B26 -> 541192 | D27: =D7-D25+D26 -> 415382.2 | F27: =F7-F25+F26 -> 330196.084 | H27: =H7-H25+H26 -> 329356.3171 | J27: =J7-J25+J26 -> 194161.3333 | K27: 839.76688 | L27: 0.002549721491 | M27: 85186.116 | N27: 0.2579864515 | O27: 125809.8 | P27: 0.3028772056

Sheet Comparative BS
A1: AC Speed Corporation
A2: Balance Sheet | K2: 2009 | M2: 2010 | O2: 2011
B3: 2011-12-31 | D3: 2010-12-31 | F3: 2009-12-31 | H3: 2008-12-31 | J3: 2011-07-31 | K3: INCREASE/DECREASE | L3: % CHANGE | M3: INCREASE/DECREASE | N3: % CHANGE | O3: INCREASE/DECREASE | P3: % CHANGE
A4: Cash | B4: =940547+43558-1905+9663+38777+16000+654+1933-740-6880+242-3201-850+1100+380-4650+12900 -> 1047528 | D4: =840436.688+34564-1003-4201+2025+8410+21360+255+72000+542-31222-72-3654+159-2611-1446-10+555+370-4800+63444+12500 -> 1007601.688 | F4: =924480.3568+4455-3302-134+4668-4850+558+42086+25-12936+1800-1411-1500-987-2351-644-75+89-107-5400-43000 -> 901464.3568 | H4: =892521+22391+4662-4889+4227+1009-6688+23-11860+3090+1238-1695-1114-12663+800 -> 891052 | J4: 584120 | K4: =F4-H4 -> 10412.3568 | L4: =K4/H4 -> 0.01168546482 | M4: =D4-F4 -> 106137.3312 | N4: =M4/F4 -> 0.1177387995 | O4: =B4-D4 -> 39926.312 | P4: =O4/D4 -> 0.0396250944
A5: Accounts receivables | B5: =1458752+696126-961267-43558-60 -> 1149993 | D5: =876408+1393991-571886-334552-217184-34564-63444 -> 1048769 | F5: =964048.8-56972-4455+11000+49600+16004 -> 979225.8 | H5: =875698-22391 -> 853307 | J5: 515000 | K5: =F5-H5 -> 125918.8 | L5: =K5/H5 -> 0.1475656475 | M5: =D5-F5 -> 69543.2 | N5: =M5/F5 -> 0.07101855364 | O5: =B5-D5 -> 101224 | P5: =O5/D5 -> 0.09651696417
A6: Less Allowance for doubtful accounts | B6: =15680+4512 -> 20192 | D6: =16620.8+4053 -> 20673.8 | F6: =18282.88+13980-11800 -> 20462.88 | H6: =19928.3392+3031 -> 22959.3392 | J6: 14042 | K6: -2496.4592 | L6: -0.1087339308 | M6: 210.92 | N6: 0.0103074445 | O6: -481.8 | P6: -0.02330485929
A7: Merchandise inventory | B7: =600254+96054 -> 696308 | D7: =632031.36+89022 -> 721053.36 | F7: =695234.496+62350 -> 757584.496 | H7: =757805.60064+101822 -> 859627.6006 | J7: 329050 | K7: -102043.1046 | L7: -0.1187061753 | M7: -36531.136 | N7: -0.04822054331 | O7: -24745.36 | P7: -0.03431834781
A8: Office supplies | B8: =2648.8+1347 -> 3995.8 | D8: =2807.728+1003 -> 3810.728 | F8: =3088.5008+1000 -> 4088.5008 | H8: =3366.465872+1149-220 -> 4295.465872 | J8: 2365 | K8: -206.965072 | L8: -0.04818221775 | M8: -277.7728 | N8: -0.06794001361 | O8: 185.072 | P8: 0.04856604827
A9: Prepaid insurace | B9: =22400+5622 -> 28022 | D9: =23744+4201 -> 27945 | F9: =26118.4-44 -> 26074.4 | H9: =28730.24-3234-202 -> 25294.24 | J9: 20000 | K9: 780.16 | L9: 0.03084338569 | M9: 1870.6 | N9: 0.0717408646 | O9: 77 | P9: 0.002755412417
A10: Total current assets | B10: =B4+B5+-B6+B7+B8+B9 -> 2905654.8 | D10: =D4+D5+-D6+D7+D8+D9 -> 2788505.976 | F10: =F4+F5+-F6+F7+F8+F9 -> 2647974.674 | H10: =H4+H5+-H6+H7+H8+H9 -> 2610616.967 | J10: =J4+J5+-J6+J7+J8+J9 -> 1436493 | K10: 37357.70629 | L10: 0.01430991477 | M10: 140531.3024 | N10: 0.05307124113 | O10: 117148.824 | P10: 0.04201132255
A11: Land | B11: 2000600 | D11: 2000600 | F11: 2000600 | H11: 2000600 | J11: 2000600 | K11: 0 | L11: 0 | M11: 0 | N11: 0 | O11: 0 | P11: 0
A12: Building | B12: 1500000 | D12: 1500000 | F12: 1500000 | H12: 1500000 | J12: 1500000 | K12: 0 | L12: 0 | M12: 0 | N12: 0 | O12: 0 | P12: 0
A13: Less accumulated depreciation | B13: 1500000 | D13: 1500000 | F13: 1500000 | H13: 1500000 | J13: 1500000 | K13: 0 | L13: 0 | M13: 0 | N13: 0 | O13: 0 | P13: 0
A14: Equipment-Warehouse | B14: 33600 | D14: 35616 | F14: 39177.6 | H14: 42703.584 | J14: 30000 | K14: -3525.984 | L14: -0.08256880734 | M14: -3561.6 | N14: -0.09090909091 | O14: -2016 | P14: -0.05660377358
A15: Less accumulated depreciation | B15: =2286.66666666667+302 -> 2588.666667 | D15: =2423.86666666667+263 -> 2686.866667 | F15: =2666.25333333333-222 -> 2444.253333 | H15: =2906.21613333333-395 -> 2511.216133 | J15: 2041.666667 | K15: -66.9628 | L15: -0.02666548654 | M15: 242.6133333 | N15: 0.09925866931 | O15: -98.2 | P15: -0.03654814778
A16: Equipment-Office | B16: =9520+3789 -> 13309 | D16: =10091.2+3300 -> 13391.2 | F16: =11100.32+3302 -> 14402.32 | H16: =12099.3488+4662 -> 16761.3488 | J16: 8500 | K16: -2359.0288 | L16: -0.1407421818 | M16: -1011.12 | N16: -0.0702053558 | O16: -82.2 | P16: -0.00613835952
A17: Less accumulated depreciation | B17: =2049.6+280 -> 2329.6 | D17: =2172.576+455 -> 2627.576 | F17: =2389.4336+558 -> 2947.4336 | H17: =2604.918624-516 -> 2088.918624 | J17: 1830 | K17: 858.514976 | L17: 0.4109853616 | M17: -319.8576 | N17: -0.1085207144 | O17: -297.976 | P17: -0.1134033801
A18: Total fixed assets | B18: =B11+B12-B13+B14-B15+B16-B17 -> 2042590.733 | D18: =D11+D12-D13+D14-D15+D16-D17 -> 2044292.757 | F18: =F11+F12-F13+F14-F15+F16-F17 -> 2048788.233 | H18: =H11+H12-H13+H14-H15+H16-H17 -> 2055464.798 | J18: =J11+J12-J13+J14-J15+J16-J17 -> 2035228.333 | K18: -6676.564976 | L18: -0.003248202053 | M18: -4495.475733 | N18: -0.002194212003 | O18: -1702.024 | P18: -0.0008325735117
A19: Total assets | B19: =B10+B18 -> 4948245.533 | D19: =D10+D18 -> 4832798.733 | F19: =F10+F18 -> 4696762.907 | H19: =H10+H18 -> 4666081.765 | J19: =J10+J18 -> 3471721.333 | K19: 30681.14131 | L19: 0.00657535441 | M19: 136035.8267 | N19: 0.02896374149 | O19: 115446.8 | P19: 0.02388818703
A20: Accounts payable | B20: =800254+1347+5622+3789 -> 811012 | D20: =795412+3300 -> 798712 | F20: =621254+1000+44+80026+41000+13000 -> 756324 | H20: =502102+1149-3234+9324+104500 -> 613841 | J20: 741860 | K20: 142483 | L20: 0.2321171118 | M20: 42388 | N20: 0.05604476388 | O20: 12300 | P20: 0.01539979367
A21: Wages payable | B21: 0 | D21: 0 | F21: 0 | H21: 0
A22: Interest payable | B22: 0 | D22: 0 | F22: 0 | H22: 0
A23: Dividend payable | B23: 0 | D23: 0 | F23: 0 | H23: 0
A24: Unearned rent | B24: =11200-1905 -> 9295 | D24: =11872-2025 -> 9847 | F24: =13059.5-4850 -> 8209.5 | H24: =14234.528-4889 -> 9345.528 | J24: 10000 | K24: -1136.028 | L24: -0.1215584609 | M24: 1637.5 | N24: 0.1994640356 | O24: =B24-D24 -> -552 | P24: =O24/D24 -> -0.05605768254
A25: Current liabilities | B25: =SUM(B20:B24) -> 820307 | D25: =SUM(D20:D24) -> 808559 | F25: =SUM(F20:F24) -> 764533.5 | H25: =SUM(H20:H24) -> 623186.528 | J25: =SUM(J20:J24) -> 751860 | K25: 141346.972 | L25: 0.2268132664 | M25: 44025.5 | N25: 0.05758478863 | O25: 11748 | P25: 0.01452955196
A26: Notes payable | B26: =198000+9663 -> 207663 | D26: =213696+8410 -> 222106 | F26: =235065.6+4668 -> 239733.6 | H26: =256221.504+4227 -> 260448.504 | J26: 180000 | K26: -20714.904 | L26: -0.07953550772 | M26: -17627.6 | N26: -0.07352995158 | O26: -14443 | P26: -0.06502750939
A27: Bonds payable | B27: =510000+38777+16000+12900 -> 577677 | D27: =593600+21360+12500+477 -> 627937 | F27: =652960+42086 -> 695046 | H27: =711726.4+1009 -> 712735.4 | J27: 520000 | K27: -17689.4 | L27: -0.02481902821 | M27: -67109 | N27: -0.09655332165 | O27: -50260 | P27: -0.08003987661
A28: Mortgage payable | B28: =118400+654 -> 119054 | D28: =125504+255 -> 125759 | F28: =138054.4+25 -> 138079.4 | H28: =150479.296-6688 -> 143791.296 | J28: 195000 | K28: -5711.896 | L28: -0.03972351706 | M28: -12320.4 | N28: -0.08922692306 | O28: -6705 | P28: -0.05331626365
A29: Long term liabilities | B29: =SUM(B26:B28) -> 904394 | D29: =SUM(D26:D28) -> 975802 | F29: =SUM(F26:F28) -> 1072859 | H29: =SUM(H26:H28) -> 1116975.2 | J29: =SUM(J26:J28) -> 895000 | K29: -44116.2 | L29: -0.03949613205 | M29: -97057 | N29: -0.09046575552 | O29: -71408 | P29: -0.07317878012
A30: Common stock | B30: 65000 | D30: 65000 | F30: 65000 | H30: 65000 | J30: 66300 | K30: 0 | L30: 0 | M30: 0 | N30: 0 | O30: 0 | P30: 0
A31: Paid in capital | B31: 1545000 | D31: 1545000 | F31: 1545000 | H31: 1545000 | J31: 1410300 | K31: 0 | L31: 0 | M31: 0 | N31: 0 | O31: 0 | P31: 0
A32: Retained earnings | B32: =1166744-299371+182555+36225+760+541192 -> 1628105 | D32: =1065744-386391-500+263+400500+72000-114000+415382 -> 1452998 | F32: =956030-236152+83252+54000+11000+49600+16004+330196 -> 1263930 | H32: =1238478-306857-50000+50923+69954-1374+329356 -> 1330480 | J32: =167100+194161 -> 361261 | K32: -66550 | L32: -0.05001954182 | M32: 189068 | N32: 0.149587398 | O32: 175107 | P32: 0.1205142746
A33: Total equity & liabilities | B33: =B25+B29+B30+B31+B32 -> 4962806 | D33: =D25+D29+D30+D31+D32 -> 4847359 | F33: =F25+F29+F30+F31+F32 -> 4711322.5 | H33: =H25+H29+H30+H31+H32 -> 4680641.728 | J33: =J25+J29+J30+J31+J32 -> 3484721 | K33: 30680.772 | L33: 0.006554821707 | M33: 136036.5 | N33: 0.02887437657 | O33: 115447 | P33: 0.02381647408
A34: Treasury stock | B34: 14560 | D34: 14560 | F34: 14560 | H34: 14560 | J34: 13000 | K34: 0 | L34: 0 | M34: 0 | N34: 0 | O34: 0 | P34: 0
B35: =B33-B34 -> 4948246 | D35: =D33-D34 -> 4832799 | F35: =F33-F34 -> 4696762.5 | H35: =H33-H34 -> 4666081.728 | J35: =J33-J34 -> 3471721 | K35: 30680.772 | L35: 0.006575275314 | M35: 136036.5 | N35: 0.02896388736 | O35: 115447 | P35: 0.02388822709

Sheet Ratios
B1: ='Adj Trial Balances Prior Yrs'!C3 -> Dec. 31, 2011 | D1: ='Adj Trial Balances Prior Yrs'!E3 -> Dec. 31, 2010 | F1: ='Adj Trial Balances Prior Yrs'!G3 -> Dec. 31, 2009 | H1: INDUSTRY
A2: Liquidity
A3: Current Ratio (One decimal place) | H3: 2.2
A4: Current assets | B4: ='[4]Comparative BS'!B10 -> 2905654.8 | D4: ='[4]Comparative BS'!D10 -> 2788505.976 | F4: ='[4]Comparative BS'!F10 -> 2647974.674
A5: Current liabilities | B5: ='[4]Comparative BS'!B25 -> 820307 | D5: ='[4]Comparative BS'!D25 -> 808559 | F5: ='[4]Comparative BS'!F25 -> 764533.5
A6: Current assets/Current liabilities | B6: =B4/B5 -> 3.542155315 | D6: =D4/D5 -> 3.448735313 | F6: =F4/F5 -> 3.463516868
A7: Acid Test Ratio (One decimal place) | H7: 1.5
A8: Liquid assets | B8: ='[4]Comparative BS'!B10-696308-28022 -> 2181324.8 | D8: ='[4]Comparative BS'!D10-721053-27945 -> 2039507.976 | F8: ='[4]Comparative BS'!F10-757584-26074 -> 1864316.674
A9: Current liabilities | B9: ='[4]Comparative BS'!B25 -> 820307 | D9: ='[4]Comparative BS'!D25 -> 808559 | F9: ='[4]Comparative BS'!F25 -> 764533.5
A10: Liquid assets/Current liabilities | B10: =B8/B9 -> 2.659156633 | D10: =D8/D9 -> 2.522398459 | F10: =F8/F9 -> 2.438502268
A13: Receivables Turnover (One decimal place) | H13: 10
A14: Net Sales | B14: ='[5]Comparative IS'!B7 -> 7325197 | D14: ='[5]Comparative IS'!D7 -> 6081754.6 | F14: ='[5]Comparative IS'!F7 -> 5951395.272
B15: ='[4]Comparative BS'!B5+1048769-20192-20674 -> 2157896 | D15: ='[4]Comparative BS'!D5+979226-20674-20463 -> 1986858 | F15: ='[4]Comparative BS'!F5+853307-20463-22959 -> 1789110.8
A16: Average receivables= | B16: =2157896/2 -> 1078948 | D16: =1986858/2 -> 993429 | F16: =F15/2 -> 894555.4
A17: Net Sales/Average receivables | B17: =B14/B16 -> 6.789203001 | D17: =D14/D16 -> 6.121982145 | F17: =F14/F16 -> 6.652908553
A19: Inventory Turnover (One decimal place) | H19: 9.5
A20: Cost of goods sold | B20: ='[5]Comparative IS'!B9 -> 5635022 | D20: ='[5]Comparative IS'!D9 -> 4616540 | F20: ='[5]Comparative IS'!F9 -> 4575156
B21: ='Comparative BS'!D7+'Comparative BS'!B7 -> 1417361.36 | D21: ='Comparative BS'!F7+'Comparative BS'!D7 -> 1478637.856 | F21: ='Comparative BS'!H7+'Comparative BS'!F7 -> 1617212.097
A22: Average Inventory | B22: =B21/2 -> 708680.68 | D22: =D21/2 -> 739318.928 | F22: =F21/2 -> 808606.0483
A24: Cost of goods sold/Average inventory | B24: =B20/B22 -> 7.951426022 | D24: =D20/D22 -> 6.244314632 | F24: =F20/F22 -> 5.658077885
A26: Profitability
A28: Profit Margin (% with two decimal places) | H28: 0.075
A29: Net Income | B29: ='Comparative IS'!B27 -> 541192 | D29: ='Comparative IS'!D27 -> 415382.2 | F29: ='Comparative IS'!F27 -> 330196.084
A30: Net sales | B30: ='Comparative IS'!B7 -> 7325197 | D30: ='Comparative IS'!D7 -> 6081754.6 | F30: ='Comparative IS'!F7 -> 5951395.272
A31: Net Income/Net Sales | B31: =B29/B30*100 -> 7.388087993 | D31: =D29/D30*100 -> 6.829973048 | F31: =F29/F30*100 -> 5.548212964
A32: Asset Turnover (two decimal places) | H32: 1.9
A33: Net sales | B33: ='Comparative IS'!B7 -> 7325197 | D33: ='Comparative IS'!D7 -> 6081754.6 | F33: ='Comparative IS'!F7 -> 5951395.272
A34: Average Assets | B34: =B35/2 -> 4890522.133 | D34: =D35/2 -> 4764780.82 | F34: =F35/2 -> 4681422.336
A35: Total Assets | B35: ='Comparative BS'!B19+'Comparative BS'!D19 -> 9781044.267 | D35: ='Comparative BS'!D19+'Comparative BS'!F19 -> 9529561.64 | F35: ='Comparative BS'!F19+'Comparative BS'!H19 -> 9362844.672
A36: Net sales/Average Assets | B36: =B33/B34 -> 1.497835364 | D36: =D33/D34 -> 1.276397557 | F36: =F33/F34 -> 1.271279292
A38: Return on Assets (% one decimal place) | H38: 0.105
A39: Net Income | B39: ='Comparative IS'!B27 -> 541192 | D39: ='Comparative IS'!D27 -> 415382.2 | F39: ='Comparative IS'!F27 -> 330196.084
A40: Average Assets | B40: =B41/2 -> 4890522.133 | D40: =D41/2 -> 4764780.82 | F40: =F41/2 -> 4681422.336
A41: Assets | B41: ='Comparative BS'!B19+'Comparative BS'!D19 -> 9781044.267 | D41: ='Comparative BS'!D19+'Comparative BS'!F19 -> 9529561.64 | F41: ='Comparative BS'!F19+'Comparative BS'!H19 -> 9362844.672
A42: Net Income / average assets | B42: =B39/B40*100 -> 11.06613947 | D42: =D39/D40*100 -> 8.717760915 | F42: =F39/F40*100 -> 7.053328247
A43: Return on Common Shareholders' Equity
A44: (One decimal place) | H44: 0.183
A45: Net Income | B45: ='Comparative IS'!B27-B72 -> 499592 | D45: ='Comparative IS'!D27-D72 -> 377882.2 | F45: ='Comparative IS'!F27-F72 -> 295196.084
A46: AverageStockholders equity | B46: ='Comparative BS'!B30+'Comparative BS'!B31+'Comparative BS'!B32 -> 3238105 | D46: ='Comparative BS'!D30+'Comparative BS'!D31+'Comparative BS'!D32 -> 3062998 | F46: ='Comparative BS'!F30+'Comparative BS'!F31+'Comparative BS'!F32 -> 2873930
A47: Net Income -Dividend/Avg Stockholders equity | B47: =B45/B46*100 -> 15.42852996 | D47: =D45/D46*100 -> 12.33700446 | F47: =F45/F46*100 -> 10.27151267
A51: Earnings per Share (EPS) (Two decimal places) | H51: 7.9
A52: Net Income | B52: ='Comparative IS'!B27-B72 -> 499592 | D52: ='Comparative IS'!D27-D72 -> 377882.2 | F52: ='Comparative IS'!F27-F72 -> 295196.084
A53: Weighted Average Common Shares | B53: 65000 | D53: 63000 | F53: 63000
A54: Net Income/ Weighted Average common shares | B54: =B52/B53 -> 7.686030769 | D54: =D52/D53 -> 5.998130159 | F54: =F52/F53 -> 4.685652127
A56: Price-Earnings (P/E ) Ratio (Two decimal places) | H56: 10.72
A57: Market Price per Share | B57: 56 | D57: 52 | F57: 50
A58: EPS | B58: =B54 -> 7.686030769 | D58: =D54 -> 5.998130159 | F58: =F54 -> 4.685652127
A59: Market Price per Share /EPS | B59: =B57/B58 -> 7.285945331 | D59: =D57/D58 -> 8.66936839 | F59: =F57/F58 -> 10.67087326
A60: Payout Ratio (% One decimal place) | H60: 0.065
A61: Net Income | B61: ='Comparative IS'!B27 -> 541192 | D61: ='Comparative IS'!D27 -> 415382.2 | F61: ='Comparative IS'!F27 -> 330196.084
A62: Common Dividend | B62: =83200*0.5 -> 41600 | D62: =75000*0.5 -> 37500 | F62: =70000*0.5 -> 35000
A63: Common Dividend/Net Income | B63: =B62/B61*100 -> 7.686735946 | D63: =D62/D61*100 -> 9.027830273 | F63: =F62/F61*100 -> 10.59976229
A65: Solvency Ratios
A67: Debt to Total Assets Ratio (% One decimal place) | H67: 0.422
A68: Total Debt | B68: ='Comparative BS'!B26+'Comparative BS'!B27+'Comparative BS'!B28+'Comparative BS'!B25 -> 1724701 | D68: =SUM('Comparative BS'!D26:D28)+'Comparative BS'!D25 -> 1784361 | F68: =SUM('Comparative BS'!F26:F28)+'Comparative BS'!F25 -> 1837392.5
A69: Total Assets | B69: ='Comparative BS'!B19+'Comparative BS'!D19 -> 9781044.267 | D69: ='Comparative BS'!D19+'Comparative BS'!F19 -> 9529561.64 | F69: ='Comparative BS'!F19+'Comparative BS'!H19 -> 9362844.672
A70: Total Debt/ Total assets | B70: =B68/B69*100 -> 17.63309676 | D70: =D68/D69*100 -> 18.72448143 | F70: =F68/F69*100 -> 19.62429758
B71: Dec. 31, 2011 | D71: Dec. 31, 2010 | F71: Dec. 31, 2009
A72: Common Dividends | B72: =83200*0.5 -> 41600 | D72: =75000*0.5 -> 37500 | F72: =70000*0.5 -> 35000
A73: Weighted Average Common Shares | B73: 65000 | D73: 63000 | F73: 63000
A74: Market Price per Share | B74: 56 | D74: 52 | F74: 50
A78: INSTRUCTIONS:
A79: Calculate all of the ratios listed above.
A80: Evaluate the company's performance trend relative to liquidity, profitability and solvency.
A81: Evaluate the company's performance relative to liquidity, profitability and solvency for their industry for the three years.
A82: Relate to the company management in which areas they are performing well and in which areas they need improvement.
A84: Ideal Current ratio is 2:1.Company's current ratio is improving from year to year.This means that the finacial position
A85: of the compny is good and they are able to pay its liabilities easily.Company 's current ratio is also more from industrys ratio.
A87: Ideal acid test ratio is 1:1.It is also increasing from year to year.this means that company is able to payoff its debts easily.
A88: Industry's acid test ratio is 1:5 but comapnys ratio is more, it shows that company has sound financial position.
A90: Receivable turnover ratio is increasing in 2011 but industry's ratio is more which shows that th company is not
A91: able to collect its receivables in time.In this case company must make efforts to collect the receivables.
A93: Inventoy turnover ratio is also less than the industry's turnover ratio which shows that it takes time to convert inventory
A94: in cash.
A96: Company's net income is increasing from year to year which is a good sign for the company and it nearly equal to
A97: industry's ratio.
A99: Assets turnover ratio is slightly less than the industry's ratio which means company is not efficiently utilising its assets
A100: and it also indicates deficiency osfsales as compared to capital employed
A102: There is a increasing trend of company's retun on total assets but still it is less than the industry's average which means
A103: that company must pay attention for the efficient utilisation of the assets.
A105: There is a increasing trend in the comapnys return on shareholders equity but less than the industry's average which
A106: means that return to shareholders is less than the industry.
A108: Company's EPS Is incraesing and it is more than industry's average which means that company's market price of the share
A109: is more than the industry's market price of share.
A111: There is decreasing trend of company's price earning ratio and it is also less than the company's industry's ratio which shows that
A112: company's will not be able to maintain its goodwill in near future.
A114: Comapnys payout ratio is decresing from year to year but more than the industry's ratio which shows that company is
A115: paying more dividend to its shareholders in the beginning but decreases gradually
A117: There is a decreasing trend in the debt to total assets ratio but it is very much less than the industry's average
A118: which means that the total assets has not been purchased on credit which is a good sign for the company.

Sheet Adj Trial Balances Prior Yrs
B1: B/S Adjuster | C1: 1.12 | D1: =C1 -> 1.12 | E1: 1.06 | F1: =E1 -> 1.06 | G1: 1.1 | H1: =G1 -> 1.1 | I1: 1.09 | J1: 1.09
B2: I/S Adjuster | C2: 12 | D2: 12 | E2: 1.02 | F2: =E2 -> 1.02 | G2: 1.02 | H2: =G2 -> 1.02 | I2: 1.01 | J2: =I2 -> 1.01
C3: Dec. 31, 2011 | E3: Dec. 31, 2010 | G3: Dec. 31, 2009 | I3: Dec. 31, 2008 | K3: 2011-07-31
C4: Adjusted | E4: Adjusted | G4: Adjusted | I4: Adjusted | K4: Adjusted
C5: Trial Balance | E5: Trial Balance | G5: Trial Balance | I5: Trial Balance | K5: Trial Balance
A6: Acct. No. | B6: Account Title | C6: Dr. | D6: Cr. | E6: Dr. | F6: Cr. | G6: Dr. | H6: Cr. | I6: Dr. | J6: Cr. | K6: Dr. | L6: Cr.
A7: ='Chart of Accounts GL'!A9 -> 100 | B7: ='Chart of Accounts GL'!B9 -> Cash | C7: =940547+43558-1905+9663+38777+16000+654+1933-740-6880+242-3201-850+1100+380-4650+12900 -> 1047528 | D7: 0 | E7: =840436.688+34564-1003-4201+2025+8410+21360+255+72000+542-31222-72-3654+159-2611-1446-10+555+370-4800+63444+12500 -> 1007601.688 | F7: 0 | G7: =924480.3568+4455-3302-134+4668-4850+558+42086+25-12936+1800-1411-1500-987-2351-644-75+89-107-5400-43000 -> 901464.3568 | H7: 0 | I7: =892521+22391+4662-4889+4227+1009-6688+23-11860+3090+1238-1695-1114-12663+800 -> 891052 | J7: 0 | K7: 584120
A8: ='Chart of Accounts GL'!A10 -> 102 | B8: ='Chart of Accounts GL'!B10 -> Accounts Receivable | C8: =1458752+696126-961267-43558-60 -> 1149993 | D8: 0 | E8: =876408+1393991-571886-334552-217184-34564-63444 -> 1048769 | F8: 0 | G8: =964048.8-56972-4455+11000+49600+16004 -> 979225.8 | H8: 0 | I8: =875698-22391 -> 853307 | J8: 0 | K8: 515000
A9: ='Chart of Accounts GL'!A11 -> 103 | B9: ='Chart of Accounts GL'!B11 -> Allowance for Doubtful Accounts | C9: 0 | D9: =15680+4512 -> 20192 | E9: 0 | F9: =16620.8+4053 -> 20673.8 | G9: 0 | H9: =18282.88+13980-11800 -> 20462.88 | I9: 0 | J9: =19928.3392+3031 -> 22959.3392 | L9: 14042
A10: ='Chart of Accounts GL'!A12 -> 104 | B10: ='Chart of Accounts GL'!B12 -> Merchandise Inventory | C10: =600254+96054 -> 696308 | D10: 0 | E10: =632031.36+89022 -> 721053.36 | F10: 0 | G10: =695234.496+62350 -> 757584.496 | H10: 0 | I10: =757805.60064+101822 -> 859627.6006 | J10: 0 | K10: 329050
A11: ='Chart of Accounts GL'!A13 -> 105 | B11: ='Chart of Accounts GL'!B13 -> Office Supplies | C11: =2648.8+1347 -> 3995.8 | D11: 0 | E11: =2807.728+1003 -> 3810.728 | F11: 0 | G11: =3088.5008+1000 -> 4088.5008 | H11: 0 | I11: =3366.465872+1149-220 -> 4295.465872 | J11: 0 | K11: 2365
A12: ='Chart of Accounts GL'!A14 -> 106 | B12: ='Chart of Accounts GL'!B14 -> Prepaid Insurance | C12: =22400+5622 -> 28022 | D12: 0 | E12: =23744+4201 -> 27945 | F12: 0 | G12: =26118.4-44 -> 26074.4 | H12: 0 | I12: =28730.24-3234-202 -> 25294.24 | J12: 0 | K12: 20000
A13: ='Chart of Accounts GL'!A16 -> 140 | B13: ='Chart of Accounts GL'!B16 -> Land | C13: 2000600 | D13: 0 | E13: 2000600 | F13: 0 | G13: 2000600 | H13: 0 | I13: 2000600 | J13: 0 | K13: 2000600
A14: ='Chart of Accounts GL'!A17 -> 145 | B14: ='Chart of Accounts GL'!B17 -> Building | C14: 1500000 | E14: 1500000 | G14: 1500000 | I14: 1500000 | K14: 1500000
A15: ='Chart of Accounts GL'!A18 -> 146 | B15: ='Chart of Accounts GL'!B18 -> Accumulated Depreciation - Building | D15: 1500000 | F15: 1500000 | H15: 1500000 | J15: 1500000 | L15: 1500000
A16: ='Chart of Accounts GL'!A19 -> 151 | B16: ='Chart of Accounts GL'!B19 -> Equipment & Furniture - Warehouse | C16: 33600 | D16: 0 | E16: 35616 | F16: 0 | G16: 39177.6 | H16: 0 | I16: 42703.584 | J16: 0 | K16: 30000
A17: ='Chart of Accounts GL'!A20 -> 152 | B17: ='Chart of Accounts GL'!B20 -> Accumulated Depreciation - Equip & Furn. - Warehouse | C17: 0 | D17: =2286.66666666667+302 -> 2588.666667 | E17: 0 | F17: =2423.86666666667+263 -> 2686.866667 | G17: 0 | H17: =2666.25333333333-222 -> 2444.253333 | I17: 0 | J17: =2906.21613333333-395 -> 2511.216133 | L17: 2041.666667
A18: ='Chart of Accounts GL'!A21 -> 153 | B18: ='Chart of Accounts GL'!B21 -> Equipment & Furniture - Office | C18: =9520+3789 -> 13309 | D18: 0 | E18: =10091.2+3300 -> 13391.2 | F18: 0 | G18: =11100.32+3302 -> 14402.32 | H18: 0 | I18: =12099.3488+4662 -> 16761.3488 | J18: 0 | K18: 8500
A19: ='Chart of Accounts GL'!A22 -> 154 | B19: ='Chart of Accounts GL'!B22 -> Accumulated Depreciation - Equip & Furn. - Office | C19: 0 | D19: =2049.6+280 -> 2329.6 | E19: 0 | F19: =2172.576+455 -> 2627.576 | G19: 0 | H19: =2389.4336+558 -> 2947.4336 | I19: 0 | J19: =2604.918624-516 -> 2088.918624 | L19: 1830
A20: ='Chart of Accounts GL'!A26 -> 201 | B20: ='Chart of Accounts GL'!B26 -> Accounts Payable | C20: 0 | D20: =800254+1347+5622+3789 -> 811012 | E20: 0 | F20: =795412+3300 -> 798712 | G20: 0 | H20: =621254+1000+44+80026+41000+13000 -> 756324 | I20: 0 | J20: =502102+1149-3234+9324+104500 -> 613841 | L20: 741860
A21: ='Chart of Accounts GL'!A27 -> 202 | B21: ='Chart of Accounts GL'!B27 -> Wages Payable | C21: 0 | D21: 0 | E21: 0 | F21: 0 | G21: 0 | H21: 0 | I21: 0 | J21: 0
A22: ='Chart of Accounts GL'!A28 -> 203 | B22: ='Chart of Accounts GL'!B28 -> Interest Payable | C22: 0 | D22: 0 | E22: 0 | F22: 0 | G22: 0 | H22: 0 | I22: 0 | J22: 0
A23: ='Chart of Accounts GL'!A29 -> 204 | B23: ='Chart of Accounts GL'!B29 -> Dividends Payable | C23: 0 | D23: 0 | E23: 0 | F23: 0 | G23: 0 | H23: 0 | I23: 0 | J23: 0
A24: ='Chart of Accounts GL'!A30 -> 205 | B24: ='Chart of Accounts GL'!B30 -> Unearned Rent | C24: 0 | D24: =11200-1905 -> 9295 | E24: 0 | F24: =11872-2025 -> 9847 | G24: 0 | H24: =13059.5-4850 -> 8209.5 | I24: 0 | J24: =14234.528-4889 -> 9345.528 | L24: 10000
A25: ='Chart of Accounts GL'!A32 -> 250 | B25: ='Chart of Accounts GL'!B32 -> Notes Payable | C25: 0 | D25: =198000+9663 -> 207663 | E25: 0 | F25: =213696+8410 -> 222106 | G25: 0 | H25: =235065.6+4668 -> 239733.6 | I25: 0 | J25: =256221.504+4227 -> 260448.504 | L25: 180000
A26: ='Chart of Accounts GL'!A33 -> 251 | B26: ='Chart of Accounts GL'!B33 -> Bonds Payable | C26: 0 | D26: =510000+38777+16000+12900 -> 577677 | E26: 0 | F26: =593600+21360+12500+477 -> 627937 | G26: 0 | H26: =652960+42086 -> 695046 | I26: 0 | J26: =711726.4+1009 -> 712735.4 | L26: 520000
A27: ='Chart of Accounts GL'!A34 -> 252 | B27: ='Chart of Accounts GL'!B34 -> Mortgage (Warehouse) Payable | C27: 0 | D27: =118400+654 -> 119054 | E27: 0 | F27: =125504+255 -> 125759 | G27: 0 | H27: =138054.4+25 -> 138079.4 | I27: 0 | J27: =150479.296-6688 -> 143791.296 | L27: 195000
A28: ='Chart of Accounts GL'!A36 -> 300 | B28: ='Chart of Accounts GL'!B36 -> Common Stock, $1 Par, 125,000 Authorized; 75,000 shares Issued/Outstanding | C28: 0 | D28: 65000 | E28: 0 | F28: 65000 | G28: 0 | H28: 65000 | I28: 0 | J28: 65000 | L28: 66300
A29: ='Chart of Accounts GL'!A37 -> 301 | B29: ='Chart of Accounts GL'!B37 -> Paid In Capital - Excess of Par | C29: 0 | D29: 1545000 | E29: 0 | F29: 1545000 | G29: 0 | H29: 1545000 | I29: 0 | J29: 1545000 | L29: 1410300
A30: ='Chart of Accounts GL'!A38 -> 330 | B30: ='Chart of Accounts GL'!B38 -> Retained Earnings | C30: 0 | D30: =1166744-299371+182555+36225+760 -> 1086913 | F30: =1065744-386391-500+263+400500+72000-114000 -> 1037616 | H30: =956030-236152+83252+54000+11000+49600+16004 -> 933734 | J30: =1238478-306857-50000+50923+69954-1374 -> 1001124 | L30: 167100
A31: ='Chart of Accounts GL'!A39 -> 340 | B31: ='Chart of Accounts GL'!B39 -> Treasury Stock | C31: 14560 | D31: 0 | E31: 14560 | F31: 0 | G31: 14560 | H31: 0 | I31: 14560 | J31: 0 | K31: 13000
A32: ='Chart of Accounts GL'!A42 -> 500 | B32: ='Chart of Accounts GL'!B42 -> Sales | C32: 0 | D32: =7564325+24670 -> 7588995 | E32: 0 | F32: =6255371+4050+73502+14000+30000 -> 6376923 | G32: 0 | H32: =6354521+26786-80026-43000-41000-13000 -> 6204281 | I32: 0 | J32: =5689605+168472-34977 -> 5823100 | L32: 750000
A33: ='Chart of Accounts GL'!A43 -> 510 | B33: ='Chart of Accounts GL'!B43 -> Sales Discounts | C33: =140254+(0.6*24670) -> 155056 | D33: 0 | E33: =123746.4+(73502*0.6) -> 167847.6 | F33: 0 | G33: =126221.328+(26786*0.3) -> 134257.128 | H33: 0 | I33: =100142+13990.8 -> 114132.8 | J33: 0 | K33: 10110
A34: ='Chart of Accounts GL'!A44 -> 511 | B34: ='Chart of Accounts GL'!B44 -> Sales Returns & Allowances | C34: =98874+(24670*0.4) -> 108742 | D34: 0 | E34: =97920+(73502*0.4) -> 127320.8 | F34: 0 | G34: =99878.4+(26786*0.7) -> 118628.6 | H34: 0 | I34: =100877.184+20986.2 -> 121863.384 | J34: 0 | K34: 8000
A35: ='Chart of Accounts GL'!A46 -> 600 | B35: ='Chart of Accounts GL'!B46 -> Cost of Goods Sold | C35: =5548521-96054+182555 -> 5635022 | D35: 0 | E35: =4375062-89022+400500-114000+14000+30000 -> 4616540 | F35: 0 | G35: =4500254-62350+83252+54000 -> 4575156 | I35: =4150254-101822+50923+104500 -> 4203855 | K35: =349715+107317 -> 457032
A36: ='Chart of Accounts GL'!A48 -> 700 | B36: ='Chart of Accounts GL'!B48 -> Wage Expense (hourly workers) | C36: =95410-1933 -> 93477 | D36: 0 | E36: =87148.8-542 -> 86606.8 | F36: 0 | G36: =88891.776-104 -> 88787.776 | H36: 0 | I36: =89780.69376-23 -> 89757.69376 | J36: 0 | K36: 7120
A37: ='Chart of Accounts GL'!A49 -> 701 | B37: ='Chart of Accounts GL'!B49 -> Salaries Expense (Exempt Staff) | C37: =510000+36225 -> 546225 | D37: 0 | E37: =501840+31222 -> 533062 | F37: 0 | G37: =511876.8+13040 -> 524916.8 | H37: 0 | I37: =516995.568+11860 -> 528855.568 | J37: 0 | K37: 41000
A38: ='Chart of Accounts GL'!A50 -> 702 | B38: ='Chart of Accounts GL'!B50 -> Marketing Expense | C38: =20540+740 -> 21280 | D38: 0 | E38: =18360+72 -> 18432 | F38: 0 | G38: =18727.2-1800 -> 16927.2 | H38: 0 | I38: =18914.472-3090 -> 15824.472 | J38: 0 | K38: 1500
A39: ='Chart of Accounts GL'!A51 -> 703 | B39: ='Chart of Accounts GL'!B51 -> Travel and Entertainment Expense | C39: =10580+6880 -> 17460 | D39: 0 | E39: =9792+3654 -> 13446 | F39: 0 | G39: =9987.84+1411 -> 11398.84 | H39: 0 | I39: =10087.7184-1238 -> 8849.7184 | J39: 0 | K39: 800
A40: ='Chart of Accounts GL'!A52 -> 704 | B40: ='Chart of Accounts GL'!B52 -> Bad Debt Expense | C40: =185202+4512 -> 189714 | D40: 0 | E40: =110160+4053 -> 114213 | F40: 0 | G40: =112363.2+13980-11800 -> 114543.2 | H40: 0 | I40: =113486.832+3031 -> 116517.832 | J40: 0 | K40: 9000
A41: ='Chart of Accounts GL'!A53 -> 705 | B41: ='Chart of Accounts GL'!B53 -> Property Tax Expense | C41: 0 | D41: 0 | E41: 0 | F41: 0 | G41: 0 | H41: 0 | I41: 0 | J41: 0
A42: ='Chart of Accounts GL'!A54 -> 706 | B42: ='Chart of Accounts GL'!B54 -> Maintenance & Repair Expense | C42: =6000-242 -> 5758 | D42: 0 | E42: =6120-159 -> 5961 | F42: 0 | G42: =6242.4+1500 -> 7742.4 | H42: 0 | I42: =6304.824+1695 -> 7999.824 | J42: 0 | K42: 500
A43: ='Chart of Accounts GL'!A55 -> 707 | B43: ='Chart of Accounts GL'!B55 -> Legal Expenses | C43: =64000+3201 -> 67201 | D43: 0 | E43: =63000+2611 -> 65611 | F43: 0 | G43: =62424+987 -> 63411 | H43: 0 | I43: =63048.24-5374 -> 57674.24 | J43: 0 | K43: 5060
A44: ='Chart of Accounts GL'!A56 -> 708 | B44: ='Chart of Accounts GL'!B56 -> Insurance Expense | C44: =48000+850 -> 48850 | D44: 0 | E44: =48960+1446 -> 50406 | F44: 0 | G44: =49939.2+2351 -> 52290.2 | H44: 0 | I44: =50438.592+202+3555 -> 54195.592 | J44: 0 | K44: 4300
A45: ='Chart of Accounts GL'!A57 -> 709 | B45: ='Chart of Accounts GL'!B57 -> Utilities Expense | C45: =18000+60 -> 18060 | D45: 0 | E45: =18360+10 -> 18370 | F45: 0 | G45: =18727.2+644 -> 19371.2 | H45: 0 | I45: =18914.472+1114 -> 20028.472 | J45: 0 | K45: 1750
A46: ='Chart of Accounts GL'!A58 -> 710 | B46: ='Chart of Accounts GL'!B58 -> Office Supplies Expense | C46: =5220-1100 -> 4120 | D46: 0 | E46: =5324.4-555 -> 4769.4 | F46: 0 | G46: =5430.988+75 -> 5505.988 | H46: 0 | I46: =5485.19688+220 -> 5705.19688 | J46: 0 | K46: 435
A47: ='Chart of Accounts GL'!A59 -> 711 | B47: ='Chart of Accounts GL'!B59 -> Telecommunications Expense | C47: 0 | D47: 0 | E47: 0 | F47: 0 | G47: 0 | H47: 0 | I47: 0 | J47: 0
A48: ='Chart of Accounts GL'!A60 -> 712 | B48: ='Chart of Accounts GL'!B60 -> Depreciation Expense - Equip & Furniture - Warehouse | C48: =1700+302 -> 2002 | D48: 0 | E48: =1732+263 -> 1995 | F48: 0 | G48: =1768.68-89 -> 1679.68 | H48: 0 | I48: =1786.3668-395 -> 1391.3668 | J48: 0 | K48: 141.6666667
A49: ='Chart of Accounts GL'!A61 -> 713 | B49: ='Chart of Accounts GL'!B61 -> Depreciation Expense - Equip & Furniture - Office | C49: =3526+280 -> 3806 | D49: 0 | E49: =2815.2+455 -> 3270.2 | F49: 0 | G49: =2871.504+107 -> 2978.504 | H49: 0 | I49: =2900.21904-516 -> 2384.21904 | J49: 0 | K49: 230
A50: ='Chart of Accounts GL'!A63 -> 800 | B50: ='Chart of Accounts GL'!B63 -> Rent Income | C50: 0 | D50: =24000-380 -> 23620 | E50: 0 | F50: =24480-370 -> 24110 | G50: 0 | H50: 24969.6 | I50: 0 | J50: =25220.296+355 -> 25575.296 | L50: 3640
A51: ='Chart of Accounts GL'!A65 -> 900 | B51: ='Chart of Accounts GL'!B65 -> Interest Expense | C51: =150000+4650 -> 154650 | D51: 0 | E51: =153000+4800 -> 157800 | F51: 0 | G51: =156060+5400 -> 161460 | H51: 0 | I51: =157620.6+12663 -> 170283.6 | J51: 0 | K51: 12500
B53: Total | C53: =SUM(C7:C52) -> 13559338.8 | D53: =SUM(D7:D52) -> 13559339.27 | E53: 12358997.78 | F53: 12358998.24 | G53: 12136231.99 | H53: 12136231.67 | I53: 11727520.22 | J53: 11727520.5 | K53: 5562113.667 | L53: 5562113.667

Sheet Sheet1

Sheet Sheet2
